Workbook

Sheet EcoCute-II
J1: EcoCute Energy Requirements (Vapor CO2 feed)
J2: based the Wagner Equation of State-version 7.0. | N2: Report errors to R.L.Smith. Email: smith@scf.che.tohoku.ac.jp
A3: Based on: R. Span and W. Wagner, A New Equation of State for Carbon Dioxide Covering | K3: Tohoku University, Version 1.1
A4: the Fluid Regionfrom the Triple-Point Temperature to 1100 K
A5: at Pressures up to 800 MPa, | G5: Point | H5: T [C] | I5: P [MPa] | J5: H [kJ/kg] | K5: X | L5: S [kJ/kg K] | M5: rho [kg/m3] | N5: Comments | O5: HL [kJ/kg] | P5: HG [kJ/kg] | Q5: rhoL [kg/m3] | R5: rhoG [kg/m3] | S5: S [kJ/kg K] | T5: S [kJ/kg K]
A6: J. Phys. Chem. Ref. Data 25(6), 1509-1596 (1996). | G6: 1 | H6: -20 | I6: =psat_T1(H6)/1000000 -> 1.969591874 | J6: =h_tp1(H6,I6*1000000)/1000 -> 436.8892474 | K6: =IF(AND(J6>O6,J6<P6),(J6-O6)/(P6-O6),1) -> 1 | L6: =s_tp1(H6,I6*1000000)/1000 -> 1.948525864 | M6: =IF(K6<1,K6*R6+(1-K6)*Q6,rho_tp1(H6,I6*1000000)) -> 51.6982595 | N6: saturated vapor | O6: =IF(H6<CO2_TC(),hl_t1(H6)/1000,h_tp1(H6,I6*1000000)/1000) -> 154.4452637 | P6: =IF(H6<CO2_TC(),hg_t1(H6)/1000,h_tp1(H6,I6*1000000)/1000) -> 436.8874013 | Q6: =IF(H6<CO2_TC(),rhol_t1(H6),rho_tp1(H6,I6*1000000)) -> 1031.659945 | R6: =IF(H6<CO2_TC(),rhog_t1(H6),rho_tp1(H6,I6*1000000)) -> 51.70112587 | S6: =IF(H6<CO2_TC(),sl_t1(H6)/1000,s_tp1(H6,I6*1000000)/1000) -> 0.8328046466 | T6: =IF(H6<CO2_TC(),sg_t1(H6)/1000,s_tp1(H6,I6*1000000)/1000) -> 1.948512299
G7: 2 | H7: =t_ps1(I7*1000000,L7*1000) -> 121.0413532 | I7: 12 | J7: =h_tp1(H7,I7*1000000)/1000 -> 521.2378695 | K7: =IF(AND(J7>O7,J7<P7),(J7-O7)/(P7-O7),1) -> 1 | L7: =L6 -> 1.948525864 | M7: =rho_tp1(H7,I7*1000000) -> 208.9826789 | N7: supercritical fluid state-hot CO2 | O7: =IF(H7<CO2_TC(),hl_t1(H7)/1000,h_tp1(H7,I7*1000000)/1000) -> 521.2378695 | P7: =IF(H7<CO2_TC(),hg_t1(H7)/1000,h_tp1(H7,I7*1000000)/1000) -> 521.2378695 | Q7: =IF(H7<CO2_TC(),rhol_t1(H7),rho_tp1(H7,I7*1000000)) -> 208.9826789 | R7: =IF(H7<CO2_TC(),rhog_t1(H7),rho_tp1(H7,I7*1000000)) -> 208.9826789 | S7: =IF(H7<CO2_TC(),sl_t1(H7)/1000,s_tp1(H7,I7*1000000)/1000) -> 1.948525864 | T7: =IF(H7<CO2_TC(),sg_t1(H7)/1000,s_tp1(H7,I7*1000000)/1000) -> 1.948525864
G8: 3 | H8: 20 | I8: =I7 -> 12 | J8: =h_tp1(H8,I8*1000000)/1000 -> 239.8131506 | K8: =IF(AND(J8>O8,J8<P8),(J8-O8)/(P8-O8),1) -> 1 | L8: =s_tp1(H8,I8*1000000)/1000 -> 1.107352347 | M8: =rho_tp1(H8,I8*1000000) -> 878.1001904 | N8: After heat exchange- cool CO2 | O8: =IF(H8<CO2_TC(),hl_t1(H8)/1000,h_tp1(H8,I8*1000000)/1000) -> 255.8645562 | P8: =IF(H8<CO2_TC(),hg_t1(H8)/1000,h_tp1(H8,I8*1000000)/1000) -> 407.8612456 | Q8: =IF(H8<CO2_TC(),rhol_t1(H8),rho_tp1(H8,I8*1000000)) -> 773.3921891 | R8: =IF(H8<CO2_TC(),rhog_t1(H8),rho_tp1(H8,I8*1000000)) -> 194.2042036 | S8: =IF(H8<CO2_TC(),sl_t1(H8)/1000,s_tp1(H8,I8*1000000)/1000) -> 1.187705199 | T8: =IF(H8<CO2_TC(),sg_t1(H8)/1000,s_tp1(H8,I8*1000000)/1000) -> 1.706200051
G9: 4 | H9: =t_ph1(I9*1000000,J9*1000) -> -20.00135219 | I9: =I6 -> 1.969591874 | J9: =J8 -> 239.8131506 | K9: =IF(AND(J9>O9,J9<P9),(J9-O9)/(P9-O9),1) -> 0.3022562021 | L9: =sl_t1(H9)/1000 -> 0.8327934514 | M9: =rhol_t1(H9) -> 1031.66619 | N9: expansion at constant enthalpy | O9: =IF(H9<CO2_TC(),hl_t1(H9)/1000,h_tp1(H9,I9*1000000)/1000) -> 154.4423515 | P9: =IF(H9<CO2_TC(),hg_t1(H9)/1000,h_tp1(H9,I9*1000000)/1000) -> 436.887504 | Q9: =IF(H9<CO2_TC(),rhol_t1(H9),rho_tp1(H9,I9*1000000)) -> 1031.66619 | R9: =IF(H9<CO2_TC(),rhog_t1(H9),rho_tp1(H9,I9*1000000)) -> 51.69885667 | S9: =IF(H9<CO2_TC(),sl_t1(H9)/1000,s_tp1(H9,I9*1000000)/1000) -> 0.8327934514 | T9: =IF(H9<CO2_TC(),sg_t1(H9)/1000,s_tp1(H9,I9*1000000)/1000) -> 1.948518977
F11: Water In | G11: 5 | H11: 20 | I11: 0.1
F12: Water Out | G12: 6 | H12: 90 | I12: 0.1 | O12: Cp, air = 1012 J/kg K at 20 C
F13: Air In | G13: 7 | H13: 30 | I13: 0.1 | O13: Cp, water = 4184 J/kg K at 20 C and 4205 J/kg K at 90 C
F14: Air Out | G14: 8 | H14: 10 | I14: 0.1 | J14: Solvent Flow Rate | L14: 0.05 | M14: kg/s
N16: Water
J17: Heating and Cooling Requirements | N17: Showers use from 8 to 20 L/min
J18: Q32 | K18: =($J$8-$J$7)*$L$14 -> -14.07123594 | L18: kW | N18: Q65 [kW] (= -Q32) | O18: =ABS(K18) -> 14.07123594
J19: Q14 | K19: =($J$6-$J$9)*$L$14 -> 9.853804841 | L19: kW | N19: mH2O [kg/s] | O19: =O18*1000/(4184*($H$12-$H$11)) -> 0.04804437293
N20: VH2O [L/min] | O20: =O19*60 -> 2.882662376
J21: Electrical Energy Requirements
J22: W21 | K22: =($J$7-$J$6)*$L$14 -> 4.217431104 | L22: kW | N22: Air
J23: C.O.P. | K23: =(ABS(K18))/K22 -> 3.33644714 | N23: Q87 [kW] (= -Q14) | O23: =ABS(K19) -> 9.853804841
N24: mAir [kg/s] | O24: =-O23*1000/(1012*($H$14-$H$13)) -> 0.4868480652 | T24: P [MPa] | U24: T [C] | V24: rho [kg/m3] | W24: S [kJ/kg K] | X24: H [kJ/kg]
N25: rho air [kg/m3] | O25: =I13*1000000*29/(8.314*(273.15+H14))/1000 -> 1.231888531 | S25: Path 1-2 | T25: =$I$6 -> 1.969591874 | U25: =t_ps1(T25*1000000,W25*1000) -> -20 | V25: =rho_tp1(U25,T25*1000000) -> 51.6982595 | W25: =$L$6 -> 1.948525864
N26: Vair [L/min] | O26: =O24*60/O25*1000 -> 23712.2785 | P26: at | Q26: =H14 -> 10 | R26: C | T26: =T25+($I$7-$I$6)/10 -> 2.972632687 | U26: =t_ps1(T26*1000000,W26*1000) -> 7.590816381 | V26: =rho_tp1(U26,T26*1000000) -> 71.47861418 | W26: 1.948525864
T27: 3.975673499 | U27: 28.7118413 | V27: =rho_tp1(U27,T27*1000000) -> 89.89073367 | W27: 1.948525864
T28: 4.978714312 | U28: 45.99617376 | V28: =rho_tp1(U28,T28*1000000) -> 107.2636909 | W28: 1.948525864
T29: 5.981755124 | U29: 60.70142888 | V29: =rho_tp1(U29,T29*1000000) -> 123.7687893 | W29: 1.948525864
T30: 6.984795937 | U30: 73.53338391 | V30: =rho_tp1(U30,T30*1000000) -> 139.5148725 | W30: 1.948525864
T31: 7.98783675 | U31: 84.93395098 | V31: =rho_tp1(U31,T31*1000000) -> 154.5776347 | W31: 1.948525864
T32: 8.990877562 | U32: 95.2005294 | V32: =rho_tp1(U32,T32*1000000) -> 169.0136797 | W32: 1.948525864
T33: 9.993918375 | U33: 104.5435259 | V33: =rho_tp1(U33,T33*1000000) -> 182.8684923 | W33: 1.948525864
T34: 10.99695919 | U34: 113.1178705 | V34: =rho_tp1(U34,T34*1000000) -> 196.18038 | W34: 1.948525864
T35: 12 | U35: 121.0413532 | V35: =rho_tp1(U35,T35*1000000) -> 208.9826789 | W35: 1.948525864
S36: Path 2-3 | T36: =T35 -> 12 | U36: =U35 -> 121.0413532 | V36: =rho_tp1(U36,T36*1000000) -> 208.9826789 | W36: =s_tp1(U36,T36*1000000)/1000 -> 1.948525864
T37: =T36 -> 12 | U37: =U36-($H$7-$H$8)/10 -> 110.9372179 | V37: =rho_tp1(U37,T37*1000000) -> 223.0179246 | W37: 1.908519945
T38: 12 | U38: 100.8330825 | V38: =rho_tp1(U38,T38*1000000) -> 240.4379189 | W38: 1.864306837
T39: 12 | U39: 90.72894723 | V39: =rho_tp1(U39,T39*1000000) -> 263.040317 | W39: 1.814112551
T40: 12 | U40: 80.62481191 | V40: =rho_tp1(U40,T40*1000000) -> 294.3720709 | W40: 1.754673716
T41: 12 | U41: 70.52067659 | V41: =rho_tp1(U41,T41*1000000) -> 342.6039049 | W41: 1.679118748
T42: 12 | U42: 60.41654127 | V42: =rho_tp1(U42,T42*1000000) -> 429.4330751 | W42: 1.571737727
T43: 12 | U43: 50.31240596 | V43: =rho_tp1(U43,T43*1000000) -> 579.7651858 | W43: 1.423903448
T44: 12 | U44: 40.20827064 | V44: =rho_tp1(U44,T44*1000000) -> 715.5000353 | W44: 1.294897799
T45: 12 | U45: 30.10413532 | V45: =rho_tp1(U45,T45*1000000) -> 808.1142264 | W45: 1.194640272 | Y45: Reference values for calculating paths in the saturation region.
T46: 12 | U46: 20 | V46: =rho_tp1(U46,T46*1000000) -> 878.1001904 | W46: 1.107352347 | Y46: X | Z46: HL | AA46: HG | AB46: SL | AC46: SG | AD46: RHOL | AE46: RHOG
S47: Path 3-4 | T47: =$I$8 -> 12 | U47: =IF(AND(Y47>0,Y47<1),tsat_P1(T47*1000000),t_ph1(T47*1000000,X47*1000)) -> 20 | V47: =IF(Y47=1,rho_tp1(U47,T47*1000000),Y47*AE47+(1-Y47)*AD47) -> 878.1001904 | W47: =IF(Y47=1,s_tp1(U47,T47*1000000)/1000,Y47*AC47+(1-Y47)*AB47) -> 1.107352347 | X47: =$J$8 -> 239.8131506 | Y47: =IF(AND(X47>Z47,X47<AA47),(X47-Z47)/(AA47-Z47),1) -> 1 | Z47: =IF(T47*1000000<CO2_PC(),hl_t1(tsat_P1(T47*1000000))/1000,0) -> 0 | AA47: =IF(T47*1000000<CO2_PC(),hg_t1(tsat_P1(T47*1000000))/1000,0) -> 0 | AB47: =IF(U47<CO2_TC(),sl_t1(U47)/1000,s_tp1(U47,T47*1000000)/1000) -> 1.187705199 | AC47: =IF(U47<CO2_TC(),sg_t1(U47)/1000,s_tp1(U47,T47*1000000)/1000) -> 1.706200051 | AD47: =IF(U47<CO2_TC(),rhol_t1(U47),rho_tp1(U47,T47*1000000)) -> 773.3921891 | AE47: =IF(U47<CO2_TC(),rhog_t1(U47),rho_tp1(U47,T47*1000000)) -> 194.2042036
T48: =T47-($I$8-$I$9)/10 -> 10.99695919 | U48: =IF(AND(Y48>0,Y48<1),tsat_P1(T48*1000000),t_ph1(T48*1000000,X48*1000)) -> 19.47038441 | V48: =IF(Y48=1,rho_tp1(U48,T48*1000000),Y48*AE48+(1-Y48)*AD48) -> 871.2762965 | W48: 1.111267525 | X48: 239.8131506 | Y48: 1 | Z48: =IF(T48*1000000<CO2_PC(),hl_t1(tsat_P1(T48*1000000))/1000,0) -> 0 | AA48: =IF(T48*1000000<CO2_PC(),hg_t1(tsat_P1(T48*1000000))/1000,0) -> 0 | AB48: =IF(U48<CO2_TC(),sl_t1(U48)/1000,s_tp1(U48,T48*1000000)/1000) -> 1.181913195 | AC48: =IF(U48<CO2_TC(),sg_t1(U48)/1000,s_tp1(U48,T48*1000000)/1000) -> 1.711188934 | AD48: =IF(U48<CO2_TC(),rhol_t1(U48),rho_tp1(U48,T48*1000000)) -> 778.9769754 | AE48: =IF(U48<CO2_TC(),rhog_t1(U48),rho_tp1(U48,T48*1000000)) -> 190.1383179
T49: 9.993918375 | U49: =IF(AND(Y49>0,Y49<1),tsat_P1(T49*1000000),t_ph1(T49*1000000,X49*1000)) -> 18.88743478 | V49: =IF(Y49=1,rho_tp1(U49,T49*1000000),Y49*AE49+(1-Y49)*AD49) -> 864.1175508 | W49: 1.115221738 | X49: 239.8131506 | Y49: 1 | Z49: =IF(T49*1000000<CO2_PC(),hl_t1(tsat_P1(T49*1000000))/1000,0) -> 0 | AA49: =IF(T49*1000000<CO2_PC(),hg_t1(tsat_P1(T49*1000000))/1000,0) -> 0 | AB49: =IF(U49<CO2_TC(),sl_t1(U49)/1000,s_tp1(U49,T49*1000000)/1000) -> 1.17563582 | AC49: =IF(U49<CO2_TC(),sg_t1(U49)/1000,s_tp1(U49,T49*1000000)/1000) -> 1.716528847 | AD49: =IF(U49<CO2_TC(),rhol_t1(U49),rho_tp1(U49,T49*1000000)) -> 784.9566651 | AE49: =IF(U49<CO2_TC(),rhog_t1(U49),rho_tp1(U49,T49*1000000)) -> 185.8297295
T50: 8.990877562 | U50: =IF(AND(Y50>0,Y50<1),tsat_P1(T50*1000000),t_ph1(T50*1000000,X50*1000)) -> 18.24394376 | V50: =IF(Y50=1,rho_tp1(U50,T50*1000000),Y50*AE50+(1-Y50)*AD50) -> 856.5719078 | W50: 1.119218096 | X50: 239.8131506 | Y50: 1 | Z50: =IF(T50*1000000<CO2_PC(),hl_t1(tsat_P1(T50*1000000))/1000,0) -> 0 | AA50: =IF(T50*1000000<CO2_PC(),hg_t1(tsat_P1(T50*1000000))/1000,0) -> 0 | AB50: =IF(U50<CO2_TC(),sl_t1(U50)/1000,s_tp1(U50,T50*1000000)/1000) -> 1.168815795 | AC50: =IF(U50<CO2_TC(),sg_t1(U50)/1000,s_tp1(U50,T50*1000000)/1000) -> 1.722253955 | AD50: =IF(U50<CO2_TC(),rhol_t1(U50),rho_tp1(U50,T50*1000000)) -> 791.3692351 | AE50: =IF(U50<CO2_TC(),rhog_t1(U50),rho_tp1(U50,T50*1000000)) -> 181.2611052
T51: 7.98783675 | U51: =IF(AND(Y51>0,Y51<1),tsat_P1(T51*1000000),t_ph1(T51*1000000,X51*1000)) -> 17.53085224 | V51: =IF(Y51=1,rho_tp1(U51,T51*1000000),Y51*AE51+(1-Y51)*AD51) -> 848.570851 | W51: 1.12326025 | X51: 239.8131506 | Y51: 1 | Z51: =IF(T51*1000000<CO2_PC(),hl_t1(tsat_P1(T51*1000000))/1000,0) -> 0 | AA51: =IF(T51*1000000<CO2_PC(),hg_t1(tsat_P1(T51*1000000))/1000,0) -> 0 | AB51: =IF(U51<CO2_TC(),sl_t1(U51)/1000,s_tp1(U51,T51*1000000)/1000) -> 1.161380354 | AC51: =IF(U51<CO2_TC(),sg_t1(U51)/1000,s_tp1(U51,T51*1000000)/1000) -> 1.72840827 | AD51: =IF(U51<CO2_TC(),rhol_t1(U51),rho_tp1(U51,T51*1000000)) -> 798.2633857 | AE51: =IF(U51<CO2_TC(),rhog_t1(U51),rho_tp1(U51,T51*1000000)) -> 176.4097307
T52: 6.984795937 | U52: =IF(AND(Y52>0,Y52<1),tsat_P1(T52*1000000),t_ph1(T52*1000000,X52*1000)) -> 16.73643522 | V52: =IF(Y52=1,rho_tp1(U52,T52*1000000),Y52*AE52+(1-Y52)*AD52) -> 840.0201103 | W52: 1.127352569 | X52: 239.8131506 | Y52: 1 | Z52: =IF(T52*1000000<CO2_PC(),hl_t1(tsat_P1(T52*1000000))/1000,0) -> 293.2575464 | AA52: =IF(T52*1000000<CO2_PC(),hg_t1(tsat_P1(T52*1000000))/1000,0) -> 377.5597349 | AB52: =IF(U52<CO2_TC(),sl_t1(U52)/1000,s_tp1(U52,T52*1000000)/1000) -> 1.153234245 | AC52: =IF(U52<CO2_TC(),sg_t1(U52)/1000,s_tp1(U52,T52*1000000)/1000) -> 1.735050246 | AD52: =IF(U52<CO2_TC(),rhol_t1(U52),rho_tp1(U52,T52*1000000)) -> 805.7035213 | AE52: =IF(U52<CO2_TC(),rhog_t1(U52),rho_tp1(U52,T52*1000000)) -> 171.2448792
T53: 5.981755124 | U53: =IF(AND(Y53>0,Y53<1),tsat_P1(T53*1000000),t_ph1(T53*1000000,X53*1000)) -> 15.84489125 | V53: =IF(Y53=1,rho_tp1(U53,T53*1000000),Y53*AE53+(1-Y53)*AD53) -> 830.7813874 | W53: 1.13150042 | X53: 239.8131506 | Y53: 1 | Z53: =IF(T53*1000000<CO2_PC(),hl_t1(tsat_P1(T53*1000000))/1000,0) -> 262.3608084 | AA53: =IF(T53*1000000<CO2_PC(),hg_t1(tsat_P1(T53*1000000))/1000,0) -> 403.6477107 | AB53: =IF(U53<CO2_TC(),sl_t1(U53)/1000,s_tp1(U53,T53*1000000)/1000) -> 1.14424751 | AC53: =IF(U53<CO2_TC(),sg_t1(U53)/1000,s_tp1(U53,T53*1000000)/1000) -> 1.74226088 | AD53: =IF(U53<CO2_TC(),rhol_t1(U53),rho_tp1(U53,T53*1000000)) -> 813.7785544 | AE53: =IF(U53<CO2_TC(),rhog_t1(U53),rho_tp1(U53,T53*1000000)) -> 165.7230774
T54: 4.978714312 | U54: =IF(AND(Y54>0,Y54<1),tsat_P1(T54*1000000),t_ph1(T54*1000000,X54*1000)) -> 14.10690412 | V54: =IF(Y54=1,rho_tp1(U54,T54*1000000),Y54*AE54+(1-Y54)*AD54) -> 819.5857381 | W54: 1.135726242 | X54: 239.8131506 | Y54: 0.01366205995 | Z54: =IF(T54*1000000<CO2_PC(),hl_t1(tsat_P1(T54*1000000))/1000,0) -> 237.3464485 | AA54: =IF(T54*1000000<CO2_PC(),hg_t1(tsat_P1(T54*1000000))/1000,0) -> 417.8977089 | AB54: =IF(U54<CO2_TC(),sl_t1(U54)/1000,s_tp1(U54,T54*1000000)/1000) -> 1.127139225 | AC54: =IF(U54<CO2_TC(),sg_t1(U54)/1000,s_tp1(U54,T54*1000000)/1000) -> 1.755669376 | AD54: =IF(U54<CO2_TC(),rhol_t1(U54),rho_tp1(U54,T54*1000000)) -> 828.7814447 | AE54: =IF(U54<CO2_TC(),rhog_t1(U54),rho_tp1(U54,T54*1000000)) -> 155.6979875
K55: Table for Saturation Curve Calculations. These can be made in coarser temperature increments to speed up the | T55: 3.975673499 | U55: =IF(AND(Y55>0,Y55<1),tsat_P1(T55*1000000),t_ph1(T55*1000000,X55*1000)) -> 5.061723804 | V55: =IF(Y55=1,rho_tp1(U55,T55*1000000),Y55*AE55+(1-Y55)*AD55) -> 796.8914606 | W55: 1.141562698 | X55: 239.8131506 | Y55: 0.1264270691 | Z55: =IF(T55*1000000<CO2_PC(),hl_t1(tsat_P1(T55*1000000))/1000,0) -> 212.6598497 | AA55: =IF(T55*1000000<CO2_PC(),hg_t1(tsat_P1(T55*1000000))/1000,0) -> 427.4342736 | AB55: =IF(U55<CO2_TC(),sl_t1(U55)/1000,s_tp1(U55,T55*1000000)/1000) -> 1.043964017 | AC55: =IF(U55<CO2_TC(),sg_t1(U55)/1000,s_tp1(U55,T55*1000000)/1000) -> 1.815940157 | AD55: =IF(U55<CO2_TC(),rhol_t1(U55),rho_tp1(U55,T55*1000000)) -> 895.5996313 | AE55: =IF(U55<CO2_TC(),rhog_t1(U55),rho_tp1(U55,T55*1000000)) -> 114.847761
K56: calculations. | T56: 2.972632687 | U56: =IF(AND(Y56>0,Y56<1),tsat_P1(T56*1000000),t_ph1(T56*1000000,X56*1000)) -> -5.882976593 | V56: =IF(Y56=1,rho_tp1(U56,T56*1000000),Y56*AE56+(1-Y56)*AD56) -> 769.8403959 | W56: 1.15154859 | X56: 239.8131506 | Y56: 0.2172720012 | Z56: =IF(T56*1000000<CO2_PC(),hl_t1(tsat_P1(T56*1000000))/1000,0) -> 185.9820146 | AA56: =IF(T56*1000000<CO2_PC(),hg_t1(tsat_P1(T56*1000000))/1000,0) -> 433.7412092 | AB56: =IF(U56<CO2_TC(),sl_t1(U56)/1000,s_tp1(U56,T56*1000000)/1000) -> 0.9501383062 | AC56: =IF(U56<CO2_TC(),sg_t1(U56)/1000,s_tp1(U56,T56*1000000)/1000) -> 1.877134341 | AD56: =IF(U56<CO2_TC(),rhol_t1(U56),rho_tp1(U56,T56*1000000)) -> 961.0325537 | AE56: =IF(U56<CO2_TC(),rhog_t1(U56),rho_tp1(U56,T56*1000000)) -> 81.06570662
T57: 1.969591874 | U57: =IF(AND(Y57>0,Y57<1),tsat_P1(T57*1000000),t_ph1(T57*1000000,X57*1000)) -> -20 | V57: =IF(Y57=1,rho_tp1(U57,T57*1000000),Y57*AE57+(1-Y57)*AD57) -> 735.4682566 | W57: 1.1700263 | X57: 239.8131506 | Y57: 0.3022491178 | Z57: =IF(T57*1000000<CO2_PC(),hl_t1(tsat_P1(T57*1000000))/1000,0) -> 154.4452637 | AA57: =IF(T57*1000000<CO2_PC(),hg_t1(tsat_P1(T57*1000000))/1000,0) -> 436.8874013 | AB57: =IF(U57<CO2_TC(),sl_t1(U57)/1000,s_tp1(U57,T57*1000000)/1000) -> 0.8328046466 | AC57: =IF(U57<CO2_TC(),sg_t1(U57)/1000,s_tp1(U57,T57*1000000)/1000) -> 1.948512299 | AD57: =IF(U57<CO2_TC(),rhol_t1(U57),rho_tp1(U57,T57*1000000)) -> 1031.659945 | AE57: =IF(U57<CO2_TC(),rhog_t1(U57),rho_tp1(U57,T57*1000000)) -> 51.70112587
J58: T [C] | K58: Psat [MPa] | L58: rhoL [kg/m3] | M58: rhoG [kg/m3] | N58: HL [kJ/kg] | O58: HG [kJ/kg] | P58: SL [kJ/kg K] | Q58: SG [kJ/kg K] | S58: Path 4-1 | T58: =T57 -> 1.969591874 | U58: -20 | V58: =rhol_t1(U58) -> 1031.659945 | W58: =sl_t1(U58)/1000 -> 0.8328046466
J59: -40 | K59: =psat_T1(J59)/1000000 -> 1.004513463 | L59: =rhol_t1(J59) -> 1116.511108 | M59: =rhog_t1(J59) -> 26.12118463 | N59: =hl_t1(J59)/1000 -> 112.9038636 | O59: =hg_t1(J59)/1000 -> 435.3187807 | P59: =sl_t1(J59)/1000 -> 0.6655177476 | Q59: =sg_t1(J59)/1000 -> 2.048494613 | T59: 1.969591874 | U59: -20 | V59: =rhog_t1(U59) -> 51.70112587 | W59: =sg_t1(U59)/1000 -> 1.948512299
J60: -25 | K60: 1.682733388 | L60: =rhol_t1(J60) -> 1054.211502 | M60: =rhog_t1(J60) -> 43.8823064 | N60: =hl_t1(J60)/1000 -> 143.7893364 | O60: =hg_t1(J60)/1000 -> 437.0508903 | P60: =sl_t1(J60)/1000 -> 0.7913634528 | Q60: =sg_t1(J60)/1000 -> 1.973174559
J61: -20 | K61: 1.969591874 | L61: =rhol_t1(J61) -> 1031.659945 | M61: =rhog_t1(J61) -> 51.70112587 | N61: =hl_t1(J61)/1000 -> 154.4452637 | O61: =hg_t1(J61)/1000 -> 436.8874013 | P61: =sl_t1(J61)/1000 -> 0.8328046466 | Q61: =sg_t1(J61)/1000 -> 1.948512299
J62: -19.4 | K62: 2.006269942 | L62: =rhol_t1(J62) -> 1028.88044 | M62: =rhog_t1(J62) -> 52.71677011 | N62: =hl_t1(J62)/1000 -> 155.7392065 | O62: =hg_t1(J62)/1000 -> 436.8385497 | P62: =sl_t1(J62)/1000 -> 0.8377719361 | Q62: =sg_t1(J62)/1000 -> 1.945547591
J63: -19.2 | K63: 2.018606308 | L63: =rhol_t1(J63) -> 1027.950222 | M63: =rhog_t1(J63) -> 53.05923023 | N63: =hl_t1(J63)/1000 -> 156.1712955 | O63: =hg_t1(J63)/1000 -> 436.8208028 | P63: =sl_t1(J63)/1000 -> 0.8394276021 | Q63: =sg_t1(J63)/1000 -> 1.944558807
J64: -19 | K64: 2.030998103 | L64: =rhol_t1(J64) -> 1027.018125 | M64: =rhog_t1(J64) -> 53.40366739 | N64: =hl_t1(J64)/1000 -> 156.6037763 | O64: =hg_t1(J64)/1000 -> 436.8023179 | P64: =sl_t1(J64)/1000 -> 0.8410832351 | Q64: =sg_t1(J64)/1000 -> 1.943569724
J65: -18.8 | K65: 2.043445483 | L65: =rhol_t1(J65) -> 1026.084137 | M65: =rhog_t1(J65) -> 53.75009438 | N65: =hl_t1(J65)/1000 -> 157.0366518 | O65: =hg_t1(J65)/1000 -> 436.7830908 | P65: =sl_t1(J65)/1000 -> 0.8427388445 | Q65: =sg_t1(J65)/1000 -> 1.942580323
J66: -18.6 | K66: 2.055948603 | L66: =rhol_t1(J66) -> 1025.148245 | M66: =rhog_t1(J66) -> 54.09852412 | N66: =hl_t1(J66)/1000 -> 157.4699245 | O66: =hg_t1(J66)/1000 -> 436.7631177 | P66: =sl_t1(J66)/1000 -> 0.8443944398 | Q66: =sg_t1(J66)/1000 -> 1.941590589
J67: -18.4 | K67: 2.068507621 | L67: =rhol_t1(J67) -> 1024.210436 | M67: =rhog_t1(J67) -> 54.44896968 | N67: =hl_t1(J67)/1000 -> 157.9035974 | O67: =hg_t1(J67)/1000 -> 436.7423944 | P67: =sl_t1(J67)/1000 -> 0.8460500307 | Q67: =sg_t1(J67)/1000 -> 1.940600506
J68: -18.2 | K68: 2.08112269 | L68: =rhol_t1(J68) -> 1023.270696 | M68: =rhog_t1(J68) -> 54.80144424 | N68: =hl_t1(J68)/1000 -> 158.3376732 | O68: =hg_t1(J68)/1000 -> 436.7209168 | P68: =sl_t1(J68)/1000 -> 0.8477056268 | Q68: =sg_t1(J68)/1000 -> 1.939610056
J69: -18 | K69: 2.093793969 | L69: =rhol_t1(J69) -> 1022.329013 | M69: =rhog_t1(J69) -> 55.15596112 | N69: =hl_t1(J69)/1000 -> 158.7721548 | O69: =hg_t1(J69)/1000 -> 436.6986808 | P69: =sl_t1(J69)/1000 -> 0.8493612378 | Q69: =sg_t1(J69)/1000 -> 1.938619224
J70: -17.8 | K70: 2.106521614 | L70: =rhol_t1(J70) -> 1021.385373 | M70: =rhog_t1(J70) -> 55.51253378 | N70: =hl_t1(J70)/1000 -> 159.2070449 | O70: =hg_t1(J70)/1000 -> 436.6756821 | P70: =sl_t1(J70)/1000 -> 0.8510168735 | Q70: =sg_t1(J70)/1000 -> 1.937627992
J71: -17.6 | K71: 2.119305782 | L71: =rhol_t1(J71) -> 1020.439763 | M71: =rhog_t1(J71) -> 55.87117582 | N71: =hl_t1(J71)/1000 -> 159.6423466 | O71: =hg_t1(J71)/1000 -> 436.6519165 | P71: =sl_t1(J71)/1000 -> 0.8526725438 | Q71: =sg_t1(J71)/1000 -> 1.936636344
J72: -17.4 | K72: 2.13214663 | L72: =rhol_t1(J72) -> 1019.492168 | M72: =rhog_t1(J72) -> 56.23190097 | N72: =hl_t1(J72)/1000 -> 160.0780626 | O72: =hg_t1(J72)/1000 -> 436.6273796 | P72: =sl_t1(J72)/1000 -> 0.8543282588 | Q72: =sg_t1(J72)/1000 -> 1.935644262
J73: -17.2 | K73: 2.145044315 | L73: =rhol_t1(J73) -> 1018.542576 | M73: =rhog_t1(J73) -> 56.59472312 | N73: =hl_t1(J73)/1000 -> 160.5141959 | O73: =hg_t1(J73)/1000 -> 436.6020673 | P73: =sl_t1(J73)/1000 -> 0.8559840284 | Q73: =sg_t1(J73)/1000 -> 1.93465173
J74: -17 | K74: 2.157998997 | L74: =rhol_t1(J74) -> 1017.590972 | M74: =rhog_t1(J74) -> 56.95965629 | N74: =hl_t1(J74)/1000 -> 160.9507495 | O74: =hg_t1(J74)/1000 -> 436.575975 | P74: =sl_t1(J74)/1000 -> 0.8576398628 | Q74: =sg_t1(J74)/1000 -> 1.93365873
J75: -16.8 | K75: 2.171010832 | L75: =rhol_t1(J75) -> 1016.637342 | M75: =rhog_t1(J75) -> 57.32671464 | N75: =hl_t1(J75)/1000 -> 161.3877263 | O75: =hg_t1(J75)/1000 -> 436.5490983 | P75: =sl_t1(J75)/1000 -> 0.8592957723 | Q75: =sg_t1(J75)/1000 -> 1.932665244
J76: -16.6 | K76: 2.18407998 | L76: =rhol_t1(J76) -> 1015.681672 | M76: =rhog_t1(J76) -> 57.69591251 | N76: =hl_t1(J76)/1000 -> 161.8251294 | O76: =hg_t1(J76)/1000 -> 436.5214328 | P76: =sl_t1(J76)/1000 -> 0.8609517672 | Q76: =sg_t1(J76)/1000 -> 1.931671256
J77: -16.4 | K77: 2.197206598 | L77: =rhol_t1(J77) -> 1014.723948 | M77: =rhog_t1(J77) -> 58.06726436 | N77: =hl_t1(J77)/1000 -> 162.2629617 | O77: =hg_t1(J77)/1000 -> 436.492974 | P77: =sl_t1(J77)/1000 -> 0.8626078579 | Q77: =sg_t1(J77)/1000 -> 1.930676747
J78: -16.2 | K78: 2.210390847 | L78: =rhol_t1(J78) -> 1013.764155 | M78: =rhog_t1(J78) -> 58.44078482 | N78: =hl_t1(J78)/1000 -> 162.7012264 | O78: =hg_t1(J78)/1000 -> 436.4637171 | P78: =sl_t1(J78)/1000 -> 0.8642640549 | Q78: =sg_t1(J78)/1000 -> 1.9296817
J79: -16 | K79: 2.223632886 | L79: =rhol_t1(J79) -> 1012.802278 | M79: =rhog_t1(J79) -> 58.81648866 | N79: =hl_t1(J79)/1000 -> 163.1399266 | O79: =hg_t1(J79)/1000 -> 436.4336577 | P79: =sl_t1(J79)/1000 -> 0.8659203688 | Q79: =sg_t1(J79)/1000 -> 1.928686096
J80: -15.8 | K80: 2.236932874 | L80: =rhol_t1(J80) -> 1011.838302 | M80: =rhog_t1(J80) -> 59.19439083 | N80: =hl_t1(J80)/1000 -> 163.5790652 | O80: =hg_t1(J80)/1000 -> 436.402791 | P80: =sl_t1(J80)/1000 -> 0.8675768104 | Q80: =sg_t1(J80)/1000 -> 1.927689918
J81: -15.6 | K81: 2.250290971 | L81: =rhol_t1(J81) -> 1010.872213 | M81: =rhog_t1(J81) -> 59.57450643 | N81: =hl_t1(J81)/1000 -> 164.0186456 | O81: =hg_t1(J81)/1000 -> 436.3711122 | P81: =sl_t1(J81)/1000 -> 0.8692333904 | Q81: =sg_t1(J81)/1000 -> 1.926693148
J82: -15.4 | K82: 2.263707338 | L82: =rhol_t1(J82) -> 1009.903996 | M82: =rhog_t1(J82) -> 59.95685072 | N82: =hl_t1(J82)/1000 -> 164.4586709 | O82: =hg_t1(J82)/1000 -> 436.3386167 | P82: =sl_t1(J82)/1000 -> 0.8708901198 | Q82: =sg_t1(J82)/1000 -> 1.925695767
J83: -15.2 | K83: 2.277182135 | L83: =rhol_t1(J83) -> 1008.933634 | M83: =rhog_t1(J83) -> 60.34143913 | N83: =hl_t1(J83)/1000 -> 164.8991443 | O83: =hg_t1(J83)/1000 -> 436.3052995 | P83: =sl_t1(J83)/1000 -> 0.8725470096 | Q83: =sg_t1(J83)/1000 -> 1.924697756
J84: -15 | K84: 2.290715524 | L84: =rhol_t1(J84) -> 1007.961112 | M84: =rhog_t1(J84) -> 60.72828727 | N84: =hl_t1(J84)/1000 -> 165.3400691 | O84: =hg_t1(J84)/1000 -> 436.2711558 | P84: =sl_t1(J84)/1000 -> 0.874204071 | Q84: =sg_t1(J84)/1000 -> 1.923699097
J85: -14.8 | K85: 2.304307665 | L85: =rhol_t1(J85) -> 1006.986415 | M85: =rhog_t1(J85) -> 61.11741089 | N85: =hl_t1(J85)/1000 -> 165.7814485 | O85: =hg_t1(J85)/1000 -> 436.2361806 | P85: =sl_t1(J85)/1000 -> 0.8758613151 | Q85: =sg_t1(J85)/1000 -> 1.922699771
J86: -14.6 | K86: 2.31795872 | L86: =rhol_t1(J86) -> 1006.009527 | M86: =rhog_t1(J86) -> 61.50882594 | N86: =hl_t1(J86)/1000 -> 166.2232859 | O86: =hg_t1(J86)/1000 -> 436.2003688 | P86: =sl_t1(J86)/1000 -> 0.8775187534 | Q86: =sg_t1(J86)/1000 -> 1.92169976
J87: -14.4 | K87: 2.331668852 | L87: =rhol_t1(J87) -> 1005.030432 | M87: =rhog_t1(J87) -> 61.90254855 | N87: =hl_t1(J87)/1000 -> 166.6655847 | O87: =hg_t1(J87)/1000 -> 436.1637155 | P87: =sl_t1(J87)/1000 -> 0.8791763973 | Q87: =sg_t1(J87)/1000 -> 1.920699043
J88: -14.2 | K88: 2.345438221 | L88: =rhol_t1(J88) -> 1004.049113 | M88: =rhog_t1(J88) -> 62.29859501 | N88: =hl_t1(J88)/1000 -> 167.1083481 | O88: =hg_t1(J88)/1000 -> 436.1262154 | P88: =sl_t1(J88)/1000 -> 0.8808342583 | Q88: =sg_t1(J88)/1000 -> 1.919697601
J89: -14 | K89: 2.359266992 | L89: =rhol_t1(J89) -> 1003.065554 | M89: =rhog_t1(J89) -> 62.69698181 | N89: =hl_t1(J89)/1000 -> 167.5515796 | O89: =hg_t1(J89)/1000 -> 436.0878634 | P89: =sl_t1(J89)/1000 -> 0.8824923483 | Q89: =sg_t1(J89)/1000 -> 1.918695416
J90: -13.8 | K90: 2.373155327 | L90: =rhol_t1(J90) -> 1002.079739 | M90: =rhog_t1(J90) -> 63.09772561 | N90: =hl_t1(J90)/1000 -> 167.9952828 | O90: =hg_t1(J90)/1000 -> 436.0486543 | P90: =sl_t1(J90)/1000 -> 0.8841506791 | Q90: =sg_t1(J90)/1000 -> 1.917692467
J91: -13.6 | K91: 2.387103389 | L91: =rhol_t1(J91) -> 1001.09165 | M91: =rhog_t1(J91) -> 63.50084326 | N91: =hl_t1(J91)/1000 -> 168.439461 | O91: =hg_t1(J91)/1000 -> 436.0085827 | P91: =sl_t1(J91)/1000 -> 0.8858092626 | Q91: =sg_t1(J91)/1000 -> 1.916688734
J92: -13.4 | K92: 2.401111342 | L92: =rhol_t1(J92) -> 1000.101271 | M92: =rhog_t1(J92) -> 63.90635182 | N92: =hl_t1(J92)/1000 -> 168.8841179 | O92: =hg_t1(J92)/1000 -> 435.9676432 | P92: =sl_t1(J92)/1000 -> 0.8874681108 | Q92: =sg_t1(J92)/1000 -> 1.915684198
J93: -13.2 | K93: 2.41517935 | L93: =rhol_t1(J93) -> 999.1085838 | M93: =rhog_t1(J93) -> 64.31426854 | N93: =hl_t1(J93)/1000 -> 169.3292569 | O93: =hg_t1(J93)/1000 -> 435.9258304 | P93: =sl_t1(J93)/1000 -> 0.8891272361 | Q93: =sg_t1(J93)/1000 -> 1.914678839
J94: -13 | K94: 2.429307578 | L94: =rhol_t1(J94) -> 998.113572 | M94: =rhog_t1(J94) -> 64.72461083 | N94: =hl_t1(J94)/1000 -> 169.7748819 | O94: =hg_t1(J94)/1000 -> 435.8831389 | P94: =sl_t1(J94)/1000 -> 0.8907866508 | Q94: =sg_t1(J94)/1000 -> 1.913672635
J95: -12.8 | K95: 2.443496189 | L95: =rhol_t1(J95) -> 997.1162177 | M95: =rhog_t1(J95) -> 65.13739636 | N95: =hl_t1(J95)/1000 -> 170.2209962 | O95: =hg_t1(J95)/1000 -> 435.8395629 | P95: =sl_t1(J95)/1000 -> 0.8924463673 | Q95: =sg_t1(J95)/1000 -> 1.912665567
J96: -12.6 | K96: 2.45774535 | L96: =rhol_t1(J96) -> 996.116503 | M96: =rhog_t1(J96) -> 65.55264296 | N96: =hl_t1(J96)/1000 -> 170.6676038 | O96: =hg_t1(J96)/1000 -> 435.795097 | P96: =sl_t1(J96)/1000 -> 0.8941063983 | Q96: =sg_t1(J96)/1000 -> 1.911657613
J97: -12.4 | K97: 2.472055225 | L97: =rhol_t1(J97) -> 995.1144098 | M97: =rhog_t1(J97) -> 65.97036869 | N97: =hl_t1(J97)/1000 -> 171.1147084 | O97: =hg_t1(J97)/1000 -> 435.7497353 | P97: =sl_t1(J97)/1000 -> 0.8957667566 | Q97: =sg_t1(J97)/1000 -> 1.910648753
J98: -12.2 | K98: 2.486425981 | L98: =rhol_t1(J98) -> 994.1099201 | M98: =rhog_t1(J98) -> 66.3905918 | N98: =hl_t1(J98)/1000 -> 171.5623136 | O98: =hg_t1(J98)/1000 -> 435.7034722 | P98: =sl_t1(J98)/1000 -> 0.897427455 | Q98: =sg_t1(J98)/1000 -> 1.909638965
J99: -12 | K99: 2.500857784 | L99: =rhol_t1(J99) -> 993.1030152 | M99: =rhog_t1(J99) -> 66.81333079 | N99: =hl_t1(J99)/1000 -> 172.0104234 | O99: =hg_t1(J99)/1000 -> 435.6563018 | P99: =sl_t1(J99)/1000 -> 0.8990885067 | Q99: =sg_t1(J99)/1000 -> 1.908628228
J100: -11.8 | K100: 2.515350799 | L100: =rhol_t1(J100) -> 992.0936766 | M100: =rhog_t1(J100) -> 67.23860434 | N100: =hl_t1(J100)/1000 -> 172.4590417 | O100: =hg_t1(J100)/1000 -> 435.6082181 | P100: =sl_t1(J100)/1000 -> 0.9007499248 | Q100: =sg_t1(J100)/1000 -> 1.907616521
J101: -11.6 | K101: 2.529905196 | L101: =rhol_t1(J101) -> 991.0818854 | M101: =rhog_t1(J101) -> 67.66643138 | N101: =hl_t1(J101)/1000 -> 172.9081723 | O101: =hg_t1(J101)/1000 -> 435.5592151 | P101: =sl_t1(J101)/1000 -> 0.9024117227 | Q101: =sg_t1(J101)/1000 -> 1.906603822
J102: -11.4 | K102: 2.544521139 | L102: =rhol_t1(J102) -> 990.0676224 | M102: =rhog_t1(J102) -> 68.09683105 | N102: =hl_t1(J102)/1000 -> 173.3578192 | O102: =hg_t1(J102)/1000 -> 435.5092869 | P102: =sl_t1(J102)/1000 -> 0.9040739138 | Q102: =sg_t1(J102)/1000 -> 1.905590109
J103: -11.2 | K103: 2.559198798 | L103: =rhol_t1(J103) -> 989.0508682 | M103: =rhog_t1(J103) -> 68.52982273 | N103: =hl_t1(J103)/1000 -> 173.8079865 | O103: =hg_t1(J103)/1000 -> 435.4584272 | P103: =sl_t1(J103)/1000 -> 0.905736512 | Q103: =sg_t1(J103)/1000 -> 1.904575359
J104: -11 | K104: 2.573938341 | L104: =rhol_t1(J104) -> 988.0316033 | M104: =rhog_t1(J104) -> 68.96542602 | N104: =hl_t1(J104)/1000 -> 174.2586783 | O104: =hg_t1(J104)/1000 -> 435.4066299 | P104: =sl_t1(J104)/1000 -> 0.9073995309 | Q104: =sg_t1(J104)/1000 -> 1.90355955
J105: -10.8 | K105: 2.588739936 | L105: =rhol_t1(J105) -> 987.0098078 | M105: =rhog_t1(J105) -> 69.40366078 | N105: =hl_t1(J105)/1000 -> 174.7098986 | O105: =hg_t1(J105)/1000 -> 435.3538887 | P105: =sl_t1(J105)/1000 -> 0.9090629845 | Q105: =sg_t1(J105)/1000 -> 1.90254266
J106: -10.6 | K106: 2.603603752 | L106: =rhol_t1(J106) -> 985.9854617 | M106: =rhog_t1(J106) -> 69.84454708 | N106: =hl_t1(J106)/1000 -> 175.1616517 | O106: =hg_t1(J106)/1000 -> 435.3001971 | P106: =sl_t1(J106)/1000 -> 0.9107268871 | Q106: =sg_t1(J106)/1000 -> 1.901524666
J107: -10.4 | K107: 2.618529958 | L107: =rhol_t1(J107) -> 984.9585446 | M107: =rhog_t1(J107) -> 70.28810527 | N107: =hl_t1(J107)/1000 -> 175.6139417 | O107: =hg_t1(J107)/1000 -> 435.2455488 | P107: =sl_t1(J107)/1000 -> 0.912391253 | Q107: =sg_t1(J107)/1000 -> 1.900505544
J108: -10.2 | K108: 2.633518724 | L108: =rhol_t1(J108) -> 983.9290359 | M108: =rhog_t1(J108) -> 70.73435594 | N108: =hl_t1(J108)/1000 -> 176.0667729 | O108: =hg_t1(J108)/1000 -> 435.1899373 | P108: =sl_t1(J108)/1000 -> 0.9140560965 | Q108: =sg_t1(J108)/1000 -> 1.899485272
J109: -10 | K109: 2.648570221 | L109: =rhol_t1(J109) -> 982.8969149 | M109: =rhog_t1(J109) -> 71.18331991 | N109: =hl_t1(J109)/1000 -> 176.5201498 | O109: =hg_t1(J109)/1000 -> 435.1333558 | P109: =sl_t1(J109)/1000 -> 0.9157214324 | Q109: =sg_t1(J109)/1000 -> 1.898463825
J110: -9.8 | K110: 2.663684619 | L110: =rhol_t1(J110) -> 981.8621603 | M110: =rhog_t1(J110) -> 71.63501829 | N110: =hl_t1(J110)/1000 -> 176.9740766 | O110: =hg_t1(J110)/1000 -> 435.0757978 | P110: =sl_t1(J110)/1000 -> 0.9173872755 | Q110: =sg_t1(J110)/1000 -> 1.89744118
J111: -9.6 | K111: 2.678862089 | L111: =rhol_t1(J111) -> 980.8247509 | M111: =rhog_t1(J111) -> 72.08947245 | N111: =hl_t1(J111)/1000 -> 177.4285578 | O111: =hg_t1(J111)/1000 -> 435.0172564 | P111: =sl_t1(J111)/1000 -> 0.9190536409 | Q111: =sg_t1(J111)/1000 -> 1.896417313
J112: -9.4 | K112: 2.694102803 | L112: =rhol_t1(J112) -> 979.7846649 | M112: =rhog_t1(J112) -> 72.54670401 | N112: =hl_t1(J112)/1000 -> 177.8835979 | O112: =hg_t1(J112)/1000 -> 434.9577248 | P112: =sl_t1(J112)/1000 -> 0.9207205436 | Q112: =sg_t1(J112)/1000 -> 1.8953922
J113: -9.2 | K113: 2.709406932 | L113: =rhol_t1(J113) -> 978.7418805 | M113: =rhog_t1(J113) -> 73.00673488 | N113: =hl_t1(J113)/1000 -> 178.3392016 | O113: =hg_t1(J113)/1000 -> 434.897196 | P113: =sl_t1(J113)/1000 -> 0.9223879991 | Q113: =sg_t1(J113)/1000 -> 1.894365815
J114: -9 | K114: 2.724774649 | L114: =rhol_t1(J114) -> 977.6963754 | M114: =rhog_t1(J114) -> 73.46958725 | N114: =hl_t1(J114)/1000 -> 178.7953733 | O114: =hg_t1(J114)/1000 -> 434.835663 | P114: =sl_t1(J114)/1000 -> 0.924056023 | Q114: =sg_t1(J114)/1000 -> 1.893338135
J115: -8.8 | K115: 2.740206127 | L115: =rhol_t1(J115) -> 976.6481272 | M115: =rhog_t1(J115) -> 73.93528358 | N115: =hl_t1(J115)/1000 -> 179.2521178 | O115: =hg_t1(J115)/1000 -> 434.7731187 | P115: =sl_t1(J115)/1000 -> 0.925724631 | Q115: =sg_t1(J115)/1000 -> 1.892309133
J116: -8.6 | K116: 2.755701539 | L116: =rhol_t1(J116) -> 975.5971131 | M116: =rhog_t1(J116) -> 74.40384662 | N116: =hl_t1(J116)/1000 -> 179.7094399 | O116: =hg_t1(J116)/1000 -> 434.7095558 | P116: =sl_t1(J116)/1000 -> 0.927393839 | Q116: =sg_t1(J116)/1000 -> 1.891278785
J117: -8.4 | K117: 2.771261059 | L117: =rhol_t1(J117) -> 974.54331 | M117: =rhog_t1(J117) -> 74.87529944 | N117: =hl_t1(J117)/1000 -> 180.1673443 | O117: =hg_t1(J117)/1000 -> 434.644967 | P117: =sl_t1(J117)/1000 -> 0.9290636631 | Q117: =sg_t1(J117)/1000 -> 1.890247066
J118: -8.2 | K118: 2.786884861 | L118: =rhol_t1(J118) -> 973.4866946 | M118: =rhog_t1(J118) -> 75.34966537 | N118: =hl_t1(J118)/1000 -> 180.625836 | O118: =hg_t1(J118)/1000 -> 434.5793448 | P118: =sl_t1(J118)/1000 -> 0.9307341198 | Q118: =sg_t1(J118)/1000 -> 1.889213948
J119: -8 | K119: 2.802573119 | L119: =rhol_t1(J119) -> 972.4272431 | M119: =rhog_t1(J119) -> 75.82696807 | N119: =hl_t1(J119)/1000 -> 181.0849198 | O119: =hg_t1(J119)/1000 -> 434.5126819 | P119: =sl_t1(J119)/1000 -> 0.9324052255 | Q119: =sg_t1(J119)/1000 -> 1.888179406
J120: -7.8 | K120: 2.81832601 | L120: =rhol_t1(J120) -> 971.3649315 | M120: =rhog_t1(J120) -> 76.30723151 | N120: =hl_t1(J120)/1000 -> 181.5446008 | O120: =hg_t1(J120)/1000 -> 434.4449706 | P120: =sl_t1(J120)/1000 -> 0.934076997 | Q120: =sg_t1(J120)/1000 -> 1.887143414
J121: -7.6 | K121: 2.834143707 | L121: =rhol_t1(J121) -> 970.2997355 | M121: =rhog_t1(J121) -> 76.79047997 | N121: =hl_t1(J121)/1000 -> 182.004884 | O121: =hg_t1(J121)/1000 -> 434.3762031 | P121: =sl_t1(J121)/1000 -> 0.9357494511 | Q121: =sg_t1(J121)/1000 -> 1.886105944
J122: -7.4 | K122: 2.850026389 | L122: =rhol_t1(J122) -> 969.2316305 | M122: =rhog_t1(J122) -> 77.27673805 | N122: =hl_t1(J122)/1000 -> 182.4657746 | O122: =hg_t1(J122)/1000 -> 434.3063717 | P122: =sl_t1(J122)/1000 -> 0.9374226052 | Q122: =sg_t1(J122)/1000 -> 1.88506697
J123: -7.2 | K123: =psat_T1(J123)/1000000 -> 2.865974231 | L123: =rhol_t1(J123) -> 968.1605914 | M123: =rhog_t1(J123) -> 77.76603068 | N123: =hl_t1(J123)/1000 -> 182.9272778 | O123: =hg_t1(J123)/1000 -> 434.2354684 | P123: =sl_t1(J123)/1000 -> 0.9390964765 | Q123: =sg_t1(J123)/1000 -> 1.884026464
J124: -7 | K124: 2.88198741 | L124: =rhol_t1(J124) -> 967.086593 | M124: =rhog_t1(J124) -> 78.25838313 | N124: =hl_t1(J124)/1000 -> 183.3893989 | O124: =hg_t1(J124)/1000 -> 434.1634853 | P124: =sl_t1(J124)/1000 -> 0.9407710826 | Q124: =sg_t1(J124)/1000 -> 1.882984399
J125: -6.8 | K125: 2.898066104 | L125: =rhol_t1(J125) -> 966.0096096 | M125: =rhog_t1(J125) -> 78.75382101 | N125: =hl_t1(J125)/1000 -> 183.8521432 | O125: =hg_t1(J125)/1000 -> 434.0904142 | P125: =sl_t1(J125)/1000 -> 0.9424464413 | Q125: =sg_t1(J125)/1000 -> 1.881940746
J126: -6.6 | K126: 2.914210491 | L126: =rhol_t1(J126) -> 964.9296152 | M126: =rhog_t1(J126) -> 79.25237027 | N126: =hl_t1(J126)/1000 -> 184.3155162 | O126: =hg_t1(J126)/1000 -> 434.0162468 | P126: =sl_t1(J126)/1000 -> 0.9441225707 | Q126: =sg_t1(J126)/1000 -> 1.880895477
J127: -6.4 | K127: 2.930420751 | L127: =rhol_t1(J127) -> 963.8465834 | M127: =rhog_t1(J127) -> 79.75405722 | N127: =hl_t1(J127)/1000 -> 184.7795233 | O127: =hg_t1(J127)/1000 -> 433.9409749 | P127: =sl_t1(J127)/1000 -> 0.9457994889 | Q127: =sg_t1(J127)/1000 -> 1.879848563
J128: -6.2 | K128: 2.946697061 | L128: =rhol_t1(J128) -> 962.7604874 | M128: =rhog_t1(J128) -> 80.25890854 | N128: =hl_t1(J128)/1000 -> 185.2441702 | O128: =hg_t1(J128)/1000 -> 433.8645899 | P128: =sl_t1(J128)/1000 -> 0.9474772146 | Q128: =sg_t1(J128)/1000 -> 1.878799975
J129: -6 | K129: 2.963039602 | L129: =rhol_t1(J129) -> 961.6713002 | M129: =rhog_t1(J129) -> 80.76695126 | N129: =hl_t1(J129)/1000 -> 185.7094626 | O129: =hg_t1(J129)/1000 -> 433.7870833 | P129: =sl_t1(J129)/1000 -> 0.9491557663 | Q129: =sg_t1(J129)/1000 -> 1.877749685
J130: -5.8 | K130: 2.979448554 | L130: =rhol_t1(J130) -> 960.5789942 | M130: =rhog_t1(J130) -> 81.27821279 | N130: =hl_t1(J130)/1000 -> 186.175406 | O130: =hg_t1(J130)/1000 -> 433.7084463 | P130: =sl_t1(J130)/1000 -> 0.9508351631 | Q130: =sg_t1(J130)/1000 -> 1.876697662
J131: -5.6 | K131: 2.995924097 | L131: =rhol_t1(J131) -> 959.4835417 | M131: =rhog_t1(J131) -> 81.79272093 | N131: =hl_t1(J131)/1000 -> 186.6420064 | O131: =hg_t1(J131)/1000 -> 433.6286703 | P131: =sl_t1(J131)/1000 -> 0.9525154241 | Q131: =sg_t1(J131)/1000 -> 1.875643876
J132: -5.4 | K132: 3.012466414 | L132: =rhol_t1(J132) -> 958.3849142 | M132: =rhog_t1(J132) -> 82.31050387 | N132: =hl_t1(J132)/1000 -> 187.1092697 | O132: =hg_t1(J132)/1000 -> 433.5477462 | P132: =sl_t1(J132)/1000 -> 0.9541965688 | Q132: =sg_t1(J132)/1000 -> 1.874588297
J133: -5.2 | K133: 3.029075686 | L133: =rhol_t1(J133) -> 957.2830831 | M133: =rhog_t1(J133) -> 82.8315902 | N133: =hl_t1(J133)/1000 -> 187.5772018 | O133: =hg_t1(J133)/1000 -> 433.465665 | P133: =sl_t1(J133)/1000 -> 0.9558786169 | Q133: =sg_t1(J133)/1000 -> 1.873530894
J134: -5 | K134: 3.045752096 | L134: =rhol_t1(J134) -> 956.1780193 | M134: =rhog_t1(J134) -> 83.3560089 | N134: =hl_t1(J134)/1000 -> 188.0458089 | O134: =hg_t1(J134)/1000 -> 433.3824174 | P134: =sl_t1(J134)/1000 -> 0.9575615883 | Q134: =sg_t1(J134)/1000 -> 1.872471636
J135: -4.8 | K135: 3.062495826 | L135: =rhol_t1(J135) -> 955.0696934 | M135: =rhog_t1(J135) -> 83.88378939 | N135: =hl_t1(J135)/1000 -> 188.515097 | O135: =hg_t1(J135)/1000 -> 433.2979943 | P135: =sl_t1(J135)/1000 -> 0.9592455032 | Q135: =sg_t1(J135)/1000 -> 1.871410491
J136: -4.6 | K136: 3.079307061 | L136: =rhol_t1(J136) -> 953.9580754 | M136: =rhog_t1(J136) -> 84.41496149 | N136: =hl_t1(J136)/1000 -> 188.9850724 | O136: =hg_t1(J136)/1000 -> 433.2123861 | P136: =sl_t1(J136)/1000 -> 0.960930382 | Q136: =sg_t1(J136)/1000 -> 1.870347427
J137: -4.4 | K137: 3.096185984 | L137: =rhol_t1(J137) -> 952.8431349 | M137: =rhog_t1(J137) -> 84.94955546 | N137: =hl_t1(J137)/1000 -> 189.4557414 | O137: =hg_t1(J137)/1000 -> 433.1255832 | P137: =sl_t1(J137)/1000 -> 0.9626162455 | Q137: =sg_t1(J137)/1000 -> 1.869282412
J138: -4.2 | K138: 3.11313278 | L138: =rhol_t1(J138) -> 951.7248411 | M138: =rhog_t1(J138) -> 85.487602 | N138: =hl_t1(J138)/1000 -> 189.9271105 | O138: =hg_t1(J138)/1000 -> 433.037576 | P138: =sl_t1(J138)/1000 -> 0.9643031146 | Q138: =sg_t1(J138)/1000 -> 1.868215413
J139: -4 | K139: 3.130147635 | L139: =rhol_t1(J139) -> 950.6031627 | M139: =rhog_t1(J139) -> 86.02913225 | N139: =hl_t1(J139)/1000 -> 190.3991862 | O139: =hg_t1(J139)/1000 -> 432.9483545 | P139: =sl_t1(J139)/1000 -> 0.9659910107 | Q139: =sg_t1(J139)/1000 -> 1.867146397
J140: -3.8 | K140: 3.147230735 | L140: =rhol_t1(J140) -> 949.4780681 | M140: =rhog_t1(J140) -> 86.57417784 | N140: =hl_t1(J140)/1000 -> 190.871975 | O140: =hg_t1(J140)/1000 -> 432.8579088 | P140: =sl_t1(J140)/1000 -> 0.9676799553 | Q140: =sg_t1(J140)/1000 -> 1.866075331
J141: -3.6 | K141: 3.164382267 | L141: =rhol_t1(J141) -> 948.3495249 | M141: =rhog_t1(J141) -> 87.12277083 | N141: =hl_t1(J141)/1000 -> 191.3454837 | O141: =hg_t1(J141)/1000 -> 432.7662288 | P141: =sl_t1(J141)/1000 -> 0.9693699702 | Q141: =sg_t1(J141)/1000 -> 1.865002179
J142: -3.4 | K142: 3.181602417 | L142: =rhol_t1(J142) -> 947.2175006 | M142: =rhog_t1(J142) -> 87.67494378 | N142: =hl_t1(J142)/1000 -> 191.8197191 | O142: =hg_t1(J142)/1000 -> 432.6733041 | P142: =sl_t1(J142)/1000 -> 0.9710610775 | Q142: =sg_t1(J142)/1000 -> 1.863926909
J143: -3.2 | K143: 3.198891374 | L143: =rhol_t1(J143) -> 946.0819619 | M143: =rhog_t1(J143) -> 88.23072973 | N143: =hl_t1(J143)/1000 -> 192.294688 | O143: =hg_t1(J143)/1000 -> 432.5791243 | P143: =sl_t1(J143)/1000 -> 0.9727532997 | Q143: =sg_t1(J143)/1000 -> 1.862849484
J144: -3 | K144: 3.216249326 | L144: =rhol_t1(J144) -> 944.9428751 | M144: =rhog_t1(J144) -> 88.79016221 | N144: =hl_t1(J144)/1000 -> 192.7703975 | O144: =hg_t1(J144)/1000 -> 432.4836788 | P144: =sl_t1(J144)/1000 -> 0.9744466594 | Q144: =sg_t1(J144)/1000 -> 1.861769869
J145: -2.8 | K145: 3.233676462 | L145: =rhol_t1(J145) -> 943.800206 | M145: =rhog_t1(J145) -> 89.35327528 | N145: =hl_t1(J145)/1000 -> 193.2468547 | O145: =hg_t1(J145)/1000 -> 432.3869569 | P145: =sl_t1(J145)/1000 -> 0.9761411797 | Q145: =sg_t1(J145)/1000 -> 1.860688029
J146: -2.6 | K146: 3.251172973 | L146: =rhol_t1(J146) -> 942.65392 | M146: =rhog_t1(J146) -> 89.92010351 | N146: =hl_t1(J146)/1000 -> 193.7240668 | O146: =hg_t1(J146)/1000 -> 432.2889476 | P146: =sl_t1(J146)/1000 -> 0.9778368839 | Q146: =sg_t1(J146)/1000 -> 1.859603927
J147: -2.4 | K147: 3.268739049 | L147: =rhol_t1(J147) -> 941.5039817 | M147: =rhog_t1(J147) -> 90.49068199 | N147: =hl_t1(J147)/1000 -> 194.202041 | O147: =hg_t1(J147)/1000 -> 432.1896398 | P147: =sl_t1(J147)/1000 -> 0.9795337956 | Q147: =sg_t1(J147)/1000 -> 1.858517527
J148: -2.2 | K148: 3.286374881 | L148: =rhol_t1(J148) -> 940.3503554 | M148: =rhog_t1(J148) -> 91.06504637 | N148: =hl_t1(J148)/1000 -> 194.6807849 | O148: =hg_t1(J148)/1000 -> 432.0890224 | P148: =sl_t1(J148)/1000 -> 0.981231939 | Q148: =sg_t1(J148)/1000 -> 1.85742879
J149: -2 | K149: 3.304080661 | L149: =rhol_t1(J149) -> 939.1930046 | M149: =rhog_t1(J149) -> 91.64323284 | N149: =hl_t1(J149)/1000 -> 195.1603059 | O149: =hg_t1(J149)/1000 -> 431.9870839 | P149: =sl_t1(J149)/1000 -> 0.9829313381 | Q149: =sg_t1(J149)/1000 -> 1.856337678
J150: -1.8 | K150: 3.321856582 | L150: =rhol_t1(J150) -> 938.0318924 | M150: =rhog_t1(J150) -> 92.22527817 | N150: =hl_t1(J150)/1000 -> 195.6406117 | O150: =hg_t1(J150)/1000 -> 431.8838127 | P150: =sl_t1(J150)/1000 -> 0.9846320178 | Q150: =sg_t1(J150)/1000 -> 1.855244155
J151: -1.6 | K151: 3.339702837 | L151: =rhol_t1(J151) -> 936.8669814 | M151: =rhog_t1(J151) -> 92.8112197 | N151: =hl_t1(J151)/1000 -> 196.12171 | O151: =hg_t1(J151)/1000 -> 431.779197 | P151: =sl_t1(J151)/1000 -> 0.9863340029 | Q151: =sg_t1(J151)/1000 -> 1.85414818
J152: -1.4 | K152: 3.35761962 | L152: =rhol_t1(J152) -> 935.6982333 | M152: =rhog_t1(J152) -> 93.40109536 | N152: =hl_t1(J152)/1000 -> 196.6036088 | O152: =hg_t1(J152)/1000 -> 431.6732249 | P152: =sl_t1(J152)/1000 -> 0.9880373189 | Q152: =sg_t1(J152)/1000 -> 1.853049713
J153: -1.2 | K153: 3.375607126 | L153: =rhol_t1(J153) -> 934.5256094 | M153: =rhog_t1(J153) -> 93.99494369 | N153: =hl_t1(J153)/1000 -> 197.086316 | O153: =hg_t1(J153)/1000 -> 431.5658843 | P153: =sl_t1(J153)/1000 -> 0.9897419913 | Q153: =sg_t1(J153)/1000 -> 1.851948716
J154: -1 | K154: 3.393665551 | L154: =rhol_t1(J154) -> 933.3490704 | M154: =rhog_t1(J154) -> 94.59280385 | N154: =hl_t1(J154)/1000 -> 197.5698397 | O154: =hg_t1(J154)/1000 -> 431.4571627 | P154: =sl_t1(J154)/1000 -> 0.9914480464 | Q154: =sg_t1(J154)/1000 -> 1.850845147
J155: -0.8 | K155: 3.41179509 | L155: =rhol_t1(J155) -> 932.1685762 | M155: =rhog_t1(J155) -> 95.19471564 | N155: =hl_t1(J155)/1000 -> 198.0541883 | O155: =hg_t1(J155)/1000 -> 431.3470478 | P155: =sl_t1(J155)/1000 -> 0.9931555105 | Q155: =sg_t1(J155)/1000 -> 1.849738964
J156: -0.6 | K156: 3.429995941 | L156: =rhol_t1(J156) -> 930.9840863 | M156: =rhog_t1(J156) -> 95.80071948 | N156: =hl_t1(J156)/1000 -> 198.53937 | O156: =hg_t1(J156)/1000 -> 431.2355268 | P156: =sl_t1(J156)/1000 -> 0.9948644105 | Q156: =sg_t1(J156)/1000 -> 1.848630127
J157: -0.4 | K157: 3.448268302 | L157: =rhol_t1(J157) -> 929.7955592 | M157: =rhog_t1(J157) -> 96.41085648 | N157: =hl_t1(J157)/1000 -> 199.0253934 | O157: =hg_t1(J157)/1000 -> 431.1225867 | P157: =sl_t1(J157)/1000 -> 0.9965747736 | Q157: =sg_t1(J157)/1000 -> 1.847518592
J158: -0.2 | K158: 3.466612371 | L158: =rhol_t1(J158) -> 928.6029529 | M158: =rhog_t1(J158) -> 97.02516841 | N158: =hl_t1(J158)/1000 -> 199.5122672 | O158: =hg_t1(J158)/1000 -> 431.0082145 | P158: =sl_t1(J158)/1000 -> 0.9982866274 | Q158: =sg_t1(J158)/1000 -> 1.846404316
J159: -9.947598301e-14 | K159: 3.485028347 | L159: =rhol_t1(J159) -> 927.4062248 | M159: =rhog_t1(J159) -> 97.64369775 | N159: =hl_t1(J159)/1000 -> 200 | O159: =hg_t1(J159)/1000 -> 430.8923967 | P159: =sl_t1(J159)/1000 -> 1 | Q159: =sg_t1(J159)/1000 -> 1.845287256
J160: 0.2 | K160: 3.503516432 | L160: =rhol_t1(J160) -> 926.2053314 | M160: =rhog_t1(J160) -> 98.26648768 | N160: =hl_t1(J160)/1000 -> 200.4886008 | O160: =hg_t1(J160)/1000 -> 430.7751199 | P160: =sl_t1(J160)/1000 -> 1.00171492 | Q160: =sg_t1(J160)/1000 -> 1.844167368
J161: 0.4 | K161: 3.522076825 | L161: =rhol_t1(J161) -> 925.0002285 | M161: =rhog_t1(J161) -> 98.8935821 | N161: =hl_t1(J161)/1000 -> 200.9780788 | O161: =hg_t1(J161)/1000 -> 430.6563702 | P161: =sl_t1(J161)/1000 -> 1.003431416 | Q161: =sg_t1(J161)/1000 -> 1.843044605
J162: 0.6 | K162: 3.540709729 | L162: =rhol_t1(J162) -> 923.7908713 | M162: =rhog_t1(J162) -> 99.52502567 | N162: =hl_t1(J162)/1000 -> 201.468443 | O162: =hg_t1(J162)/1000 -> 430.5361336 | P162: =sl_t1(J162)/1000 -> 1.005149517 | Q162: =sg_t1(J162)/1000 -> 1.841918922
J163: 0.8 | K163: 3.559415346 | L163: =rhol_t1(J163) -> 922.577214 | M163: =rhog_t1(J163) -> 100.1608638 | N163: =hl_t1(J163)/1000 -> 201.9597028 | O163: =hg_t1(J163)/1000 -> 430.4143959 | P163: =sl_t1(J163)/1000 -> 1.006869254 | Q163: =sg_t1(J163)/1000 -> 1.840790273
J164: 1 | K164: 3.57819388 | L164: =rhol_t1(J164) -> 921.3592102 | M164: =rhog_t1(J164) -> 100.8011426 | N164: =hl_t1(J164)/1000 -> 202.4518678 | O164: =hg_t1(J164)/1000 -> 430.2911427 | P164: =sl_t1(J164)/1000 -> 1.008590656 | Q164: =sg_t1(J164)/1000 -> 1.83965861
J165: 1.2 | K165: 3.597045535 | L165: =rhol_t1(J165) -> 920.1368125 | M165: =rhog_t1(J165) -> 101.4459092 | N165: =hl_t1(J165)/1000 -> 202.9449476 | O165: =hg_t1(J165)/1000 -> 430.166359 | P165: =sl_t1(J165)/1000 -> 1.010313754 | Q165: =sg_t1(J165)/1000 -> 1.838523885
J166: 1.4 | K166: 3.615970518 | L166: =rhol_t1(J166) -> 918.909973 | M166: =rhog_t1(J166) -> 102.0952113 | N166: =hl_t1(J166)/1000 -> 203.4389521 | O166: =hg_t1(J166)/1000 -> 430.0400301 | P166: =sl_t1(J166)/1000 -> 1.01203858 | Q166: =sg_t1(J166)/1000 -> 1.83738605
J167: 1.6 | K167: 3.634969033 | L167: =rhol_t1(J167) -> 917.6786425 | M167: =rhog_t1(J167) -> 102.7490976 | N167: =hl_t1(J167)/1000 -> 203.9338912 | O167: =hg_t1(J167)/1000 -> 429.9121407 | P167: =sl_t1(J167)/1000 -> 1.013765165 | Q167: =sg_t1(J167)/1000 -> 1.836245055
J168: 1.8 | K168: 3.654041288 | L168: =rhol_t1(J168) -> 916.4427714 | M168: =rhog_t1(J168) -> 103.4076176 | N168: =hl_t1(J168)/1000 -> 204.4297751 | O168: =hg_t1(J168)/1000 -> 429.7826752 | P168: =sl_t1(J168)/1000 -> 1.015493542 | Q168: =sg_t1(J168)/1000 -> 1.83510085
J169: 2 | K169: 3.67318749 | L169: =rhol_t1(J169) -> 915.2023089 | M169: =rhog_t1(J169) -> 104.0708216 | N169: =hl_t1(J169)/1000 -> 204.9266141 | O169: =hg_t1(J169)/1000 -> 429.6516179 | P169: =sl_t1(J169)/1000 -> 1.017223742 | Q169: =sg_t1(J169)/1000 -> 1.833953382
J170: 2.2 | K170: 3.69240785 | L170: =rhol_t1(J170) -> 913.9572033 | M170: =rhog_t1(J170) -> 104.738761 | N170: =hl_t1(J170)/1000 -> 205.4244188 | O170: =hg_t1(J170)/1000 -> 429.5189527 | P170: =sl_t1(J170)/1000 -> 1.018955801 | Q170: =sg_t1(J170)/1000 -> 1.832802601
J171: 2.4 | K171: 3.711702577 | L171: =rhol_t1(J171) -> 912.7074022 | M171: =rhog_t1(J171) -> 105.4114878 | N171: =hl_t1(J171)/1000 -> 205.9231999 | O171: =hg_t1(J171)/1000 -> 429.3846634 | P171: =sl_t1(J171)/1000 -> 1.02068975 | Q171: =sg_t1(J171)/1000 -> 1.831648453
J172: 2.6 | K172: 3.731071882 | L172: =rhol_t1(J172) -> 911.452852 | M172: =rhog_t1(J172) -> 106.0890554 | N172: =hl_t1(J172)/1000 -> 206.4229682 | O172: =hg_t1(J172)/1000 -> 429.2487334 | P172: =sl_t1(J172)/1000 -> 1.022425626 | Q172: =sg_t1(J172)/1000 -> 1.830490884
J173: 2.8 | K173: 3.750515976 | L173: =rhol_t1(J173) -> 910.1934982 | M173: =rhog_t1(J173) -> 106.7715178 | N173: =hl_t1(J173)/1000 -> 206.9237349 | O173: =hg_t1(J173)/1000 -> 429.1111456 | P173: =sl_t1(J173)/1000 -> 1.024163463 | Q173: =sg_t1(J173)/1000 -> 1.829329841
J174: 3 | K174: 3.770035072 | L174: =rhol_t1(J174) -> 908.9292853 | M174: =rhog_t1(J174) -> 107.4589301 | N174: =hl_t1(J174)/1000 -> 207.4255111 | O174: =hg_t1(J174)/1000 -> 428.971883 | P174: =sl_t1(J174)/1000 -> 1.025903296 | Q174: =sg_t1(J174)/1000 -> 1.828165266
J175: 3.2 | K175: 3.789629385 | L175: =rhol_t1(J175) -> 907.6601568 | M175: =rhog_t1(J175) -> 108.1513485 | N175: =hl_t1(J175)/1000 -> 207.9283085 | O175: =hg_t1(J175)/1000 -> 428.8309279 | P175: =sl_t1(J175)/1000 -> 1.027645162 | Q175: =sg_t1(J175)/1000 -> 1.826997103
J176: 3.4 | K176: 3.80929913 | L176: =rhol_t1(J176) -> 906.386055 | M176: =rhog_t1(J176) -> 108.8488302 | N176: =hl_t1(J176)/1000 -> 208.4321387 | O176: =hg_t1(J176)/1000 -> 428.6882626 | P176: =sl_t1(J176)/1000 -> 1.029389098 | Q176: =sg_t1(J176)/1000 -> 1.825825295
J177: 3.6 | K177: 3.829044522 | L177: =rhol_t1(J177) -> 905.1069214 | M177: =rhog_t1(J177) -> 109.5514334 | N177: =hl_t1(J177)/1000 -> 208.9370135 | O177: =hg_t1(J177)/1000 -> 428.5438688 | P177: =sl_t1(J177)/1000 -> 1.031135142 | Q177: =sg_t1(J177)/1000 -> 1.824649782
J178: 3.8 | K178: 3.848865777 | L178: =rhol_t1(J178) -> 903.822696 | M178: =rhog_t1(J178) -> 110.2592175 | N178: =hl_t1(J178)/1000 -> 209.4429453 | O178: =hg_t1(J178)/1000 -> 428.397728 | P178: =sl_t1(J178)/1000 -> 1.032883332 | Q178: =sg_t1(J178)/1000 -> 1.823470506
J179: 4 | K179: 3.868763116 | L179: =rhol_t1(J179) -> 902.533318 | M179: =rhog_t1(J179) -> 110.9722431 | N179: =hl_t1(J179)/1000 -> 209.9499462 | O179: =hg_t1(J179)/1000 -> 428.2498215 | P179: =sl_t1(J179)/1000 -> 1.034633706 | Q179: =sg_t1(J179)/1000 -> 1.822287406
J180: 4.2 | K180: 3.888736756 | L180: =rhol_t1(J180) -> 901.2387252 | M180: =rhog_t1(J180) -> 111.6905717 | N180: =hl_t1(J180)/1000 -> 210.4580289 | O180: =hg_t1(J180)/1000 -> 428.10013 | P180: =sl_t1(J180)/1000 -> 1.036386305 | Q180: =sg_t1(J180)/1000 -> 1.821100419
J181: 4.4 | K181: 3.908786918 | L181: =rhol_t1(J181) -> 899.9388543 | M181: =rhog_t1(J181) -> 112.4142662 | N181: =hl_t1(J181)/1000 -> 210.9672063 | O181: =hg_t1(J181)/1000 -> 427.9486338 | P181: =sl_t1(J181)/1000 -> 1.038141169 | Q181: =sg_t1(J181)/1000 -> 1.819909482
J182: 4.6 | K182: 3.928913823 | L182: =rhol_t1(J182) -> 898.6336407 | M182: =rhog_t1(J182) -> 113.1433909 | N182: =hl_t1(J182)/1000 -> 211.4774914 | O182: =hg_t1(J182)/1000 -> 427.7953131 | P182: =sl_t1(J182)/1000 -> 1.039898339 | Q182: =sg_t1(J182)/1000 -> 1.818714532
J183: 4.8 | K183: 3.949117695 | L183: =rhol_t1(J183) -> 897.3230184 | M183: =rhog_t1(J183) -> 113.8780109 | N183: =hl_t1(J183)/1000 -> 211.9888976 | O183: =hg_t1(J183)/1000 -> 427.6401475 | P183: =sl_t1(J183)/1000 -> 1.041657858 | Q183: =sg_t1(J183)/1000 -> 1.817515502
J184: 5 | K184: 3.969398756 | L184: =rhol_t1(J184) -> 896.0069205 | M184: =rhog_t1(J184) -> 114.618193 | N184: =hl_t1(J184)/1000 -> 212.5014385 | O184: =hg_t1(J184)/1000 -> 427.4831164 | P184: =sl_t1(J184)/1000 -> 1.043419768 | Q184: =sg_t1(J184)/1000 -> 1.816312327
J185: 5.2 | K185: 3.989757232 | L185: =rhol_t1(J185) -> 894.6852783 | M185: =rhog_t1(J185) -> 115.3640052 | N185: =hl_t1(J185)/1000 -> 213.015128 | O185: =hg_t1(J185)/1000 -> 427.3241984 | P185: =sl_t1(J185)/1000 -> 1.045184113 | Q185: =sg_t1(J185)/1000 -> 1.815104939
J186: 5.4 | K186: 4.010193349 | L186: =rhol_t1(J186) -> 893.3580219 | M186: =rhog_t1(J186) -> 116.1155168 | N186: =hl_t1(J186)/1000 -> 213.5299803 | O186: =hg_t1(J186)/1000 -> 427.1633722 | P186: =sl_t1(J186)/1000 -> 1.046950938 | Q186: =sg_t1(J186)/1000 -> 1.813893267
J187: 5.6 | K187: =psat_T1(J187)/1000000 -> 4.030707335 | L187: =rhol_t1(J187) -> 892.02508 | M187: =rhog_t1(J187) -> 116.8727986 | N187: =hl_t1(J187)/1000 -> 214.0460098 | O187: =hg_t1(J187)/1000 -> 427.0006157 | P187: =sl_t1(J187)/1000 -> 1.048720288 | Q187: =sg_t1(J187)/1000 -> 1.812677242
J188: 5.8 | K188: 4.051299418 | L188: =rhol_t1(J188) -> 890.6863798 | M188: =rhog_t1(J188) -> 117.6359228 | N188: =hl_t1(J188)/1000 -> 214.5632313 | O188: =hg_t1(J188)/1000 -> 426.8359065 | P188: =sl_t1(J188)/1000 -> 1.05049221 | Q188: =sg_t1(J188)/1000 -> 1.811456792
J189: 6 | K189: 4.071969828 | L189: =rhol_t1(J189) -> 889.341847 | M189: =rhog_t1(J189) -> 118.4049632 | N189: =hl_t1(J189)/1000 -> 215.0816598 | O189: =hg_t1(J189)/1000 -> 426.6692217 | P189: =sl_t1(J189)/1000 -> 1.052266751 | Q189: =sg_t1(J189)/1000 -> 1.810231843
J190: 6.2 | K190: 4.092718797 | L190: =rhol_t1(J190) -> 887.9914057 | M190: =rhog_t1(J190) -> 119.1799949 | N190: =hl_t1(J190)/1000 -> 215.6013107 | O190: =hg_t1(J190)/1000 -> 426.500538 | P190: =sl_t1(J190)/1000 -> 1.054043959 | Q190: =sg_t1(J190)/1000 -> 1.809002322
J191: 6.4 | K191: 4.113546558 | L191: =rhol_t1(J191) -> 886.6349784 | M191: =rhog_t1(J191) -> 119.9610949 | N191: =hl_t1(J191)/1000 -> 216.1221998 | O191: =hg_t1(J191)/1000 -> 426.3298315 | P191: =sl_t1(J191)/1000 -> 1.055823884 | Q191: =sg_t1(J191)/1000 -> 1.80776815
J192: 6.6 | K192: 4.134453343 | L192: =rhol_t1(J192) -> 885.2724861 | M192: =rhog_t1(J192) -> 120.7483416 | N192: =hl_t1(J192)/1000 -> 216.6443431 | O192: =hg_t1(J192)/1000 -> 426.157078 | P192: =sl_t1(J192)/1000 -> 1.057606576 | Q192: =sg_t1(J192)/1000 -> 1.806529251
J193: 6.8 | K193: 4.155439389 | L193: =rhol_t1(J193) -> 883.9038479 | M193: =rhog_t1(J193) -> 121.541815 | N193: =hl_t1(J193)/1000 -> 217.167757 | O193: =hg_t1(J193)/1000 -> 425.9822525 | P193: =sl_t1(J193)/1000 -> 1.059392088 | Q193: =sg_t1(J193)/1000 -> 1.805285545
J194: 7 | K194: 4.176504932 | L194: =rhol_t1(J194) -> 882.5289813 | M194: =rhog_t1(J194) -> 122.3415972 | N194: =hl_t1(J194)/1000 -> 217.6924583 | O194: =hg_t1(J194)/1000 -> 425.8053299 | P194: =sl_t1(J194)/1000 -> 1.061180471 | Q194: =sg_t1(J194)/1000 -> 1.804036952
J195: 7.2 | K195: 4.197650211 | L195: =rhol_t1(J195) -> 881.1478019 | M195: =rhog_t1(J195) -> 123.1477716 | N195: =hl_t1(J195)/1000 -> 218.2184641 | O195: =hg_t1(J195)/1000 -> 425.626284 | P195: =sl_t1(J195)/1000 -> 1.06297178 | Q195: =sg_t1(J195)/1000 -> 1.802783387
J196: 7.4 | K196: 4.218875466 | L196: =rhol_t1(J196) -> 879.7602235 | M196: =rhog_t1(J196) -> 123.9604239 | N196: =hl_t1(J196)/1000 -> 218.7457919 | O196: =hg_t1(J196)/1000 -> 425.4450886 | P196: =sl_t1(J196)/1000 -> 1.064766069 | Q196: =sg_t1(J196)/1000 -> 1.801524768
J197: 7.6 | K197: 4.240180937 | L197: =rhol_t1(J197) -> 878.366158 | M197: =rhog_t1(J197) -> 124.7796412 | N197: =hl_t1(J197)/1000 -> 219.2744597 | O197: =hg_t1(J197)/1000 -> 425.2617166 | P197: =sl_t1(J197)/1000 -> 1.066563395 | Q197: =sg_t1(J197)/1000 -> 1.800261007
J198: 7.8 | K198: 4.261566867 | L198: =rhol_t1(J198) -> 876.9655154 | M198: =rhog_t1(J198) -> 125.605513 | N198: =hl_t1(J198)/1000 -> 219.8044857 | O198: =hg_t1(J198)/1000 -> 425.0761403 | P198: =sl_t1(J198)/1000 -> 1.068363817 | Q198: =sg_t1(J198)/1000 -> 1.798992017
J199: 8 | K199: 4.2830335 | L199: =rhol_t1(J199) -> 875.5582034 | M199: =rhog_t1(J199) -> 126.4381306 | N199: =hl_t1(J199)/1000 -> 220.3358888 | O199: =hg_t1(J199)/1000 -> 424.8883316 | P199: =sl_t1(J199)/1000 -> 1.070167391 | Q199: =sg_t1(J199)/1000 -> 1.797717707
J200: 8.2 | K200: 4.304581082 | L200: =rhol_t1(J200) -> 874.1441279 | M200: =rhog_t1(J200) -> 127.2775872 | N200: =hl_t1(J200)/1000 -> 220.8686881 | O200: =hg_t1(J200)/1000 -> 424.6982616 | P200: =sl_t1(J200)/1000 -> 1.07197418 | Q200: =sg_t1(J200)/1000 -> 1.796437985
J201: 8.4 | K201: 4.326209861 | L201: =rhol_t1(J201) -> 872.7231925 | M201: =rhog_t1(J201) -> 128.1239786 | N201: =hl_t1(J201)/1000 -> 221.4029032 | O201: =hg_t1(J201)/1000 -> 424.5059009 | P201: =sl_t1(J201)/1000 -> 1.073784244 | Q201: =sg_t1(J201)/1000 -> 1.795152758
J202: 8.6 | K202: 4.347920086 | L202: =rhol_t1(J202) -> 871.2952986 | M202: =rhog_t1(J202) -> 128.9774023 | N202: =hl_t1(J202)/1000 -> 221.9385543 | O202: =hg_t1(J202)/1000 -> 424.3112191 | P202: =sl_t1(J202)/1000 -> 1.075597648 | Q202: =sg_t1(J202)/1000 -> 1.793861929
... 116 more rows

Sheet CO2 Functions
B1: Physical Properties for Carbon Dioxide
B2: Version 7.0 (WCO2v70IIR.bas) | F2: For Educational Use Only!
B3: Report errors to R. L. Smith; Email: smith@scf.che.tohoku.ac.jp
A4: Hint: Select green box to see how to use function. Be careful for units! First letter of function is dependent variable; other letters are independent variables; 1=CO2.
A5: Example: V_PT1(P,T) is Specific Volume as a function of Pressure (in Pa) and Temperature (in C).
A6: Function units are in kg, m3, C, Pa, J
A7: Fundamental Constants | B7: Function Name | C7: Examples
A8: Tc: critical temperature of CO2 (in C) | B8: CO2_TC() | C8: =CO2_TC() -> 30.9782 | D8: oC
A9: Pc: critical pressure of CO2 (in Pa) | B9: CO2_PC() | C9: =CO2_PC()/1000000 -> 7.3773 | D9: MPa
A10: Vc: critical volume of CO2 (m3/kg) | B10: CO2_VC() | C10: =CO2_VC() -> 0.002138579983 | D10: m3/kg
A11: rc: critical density of CO2 (kg/m3) | B11: CO2_rhoc() | C11: =CO2_rhoc() -> 467.6 | D11: kg/m3
A12: Mw: molecular weight of CO2 (kg/mol) | B12: CO2_MW() | C12: =co2_mw() -> 0.0440098 | D12: kg/mol
A14: Solid | D14: T [oC] | E14: P [Pa] | F14: Calculated Value
A15: Pm: melting pressure (S-L) | B15: PMELT_T1(T) | D15: -55.6 | F15: =PMELT_T1(D15)/1000000 -> 5.018771614 | G15: MPa
A16: Tm: melting temperature (S-L) | B16: TMELT_T1(P) | E16: 5000000 | F16: =TMELT_P1(E16) -> -55.60397721 | G16: oC
A17: Psub: sublimation pressure (S-V) | B17: PSUB_T1(T) | D17: -85 | F17: =PSUB_T1(D17)/1000000 -> 0.05819329617 | G17: MPa
A19: Pressure-Volume (density)-Temperature
A20: Based on: R. Span and W. Wagner, A New Equation of State for Carbon Dioxide Covering the Fluid Region from the Triple-Point Temperature to 1100 K at Pressures up to 800 MPa, J. Phys. Chem. Ref. Data 25(6), 1509-1596 (1996).
C21: r [kg/m3] | D21: T [oC] | E21: P [Pa] | F21: Calculated Value
A22: Saturation Curve: Vapor-liquid Equilibrium
A23: Psat: Vapor pressure (saturation pressure), Pa | B23: PSAT_T1(T) | D23: 25 | F23: =psat_T1(D23)/1000000 -> 6.434315596 | G23: MPa
A24: Tsat: Vapor temperature (saturation temperature), oC | B24: TSAT_P1(P) | E24: 100000 | F24: =tsat_P1(E24) -> -88.04184272 | G24: oC
A25: Hvap: Heat (enthalpy) of vaporization, J/kg | B25: HVAP_T1(T) | D25: 25 | F25: =HVAP_T1(D25)*co2_mw()/1000 -> 5.265704938 | G25: kJ/mol
A26: Svap: Entropy of vaporization, J/(kg K) | B26: SVAP_T1(T) | D26: 25 | F26: =SVAP_T1(D26) -> 401.3027159 | G26: J/(kg K)
A27: Liquid phase (saturated)
A28: r: Density, kg/m3 | B28: RHOL_T1(T) | D28: 25 | F28: =rhol_t1(D28) -> 710.4714964 | G28: kg/m3
A29: H: Enthalpy, H, J/kg | B29: HL_T1(T) | D29: 25 | F29: =hl_t1(D29) -> 274786.959 | G29: J/kg
A30: S: Entropy, S, J/(kg K) | B30: SL_T1(T) | D30: 25 | F30: =sl_t1(D30) -> 1248.480633 | G30: J/(kg K)
A31: Cp: constant pressure heat capacity, J/(kg K) | B31: CPL_T1(T) | D31: 25 | F31: =CPL_T1(D31) -> 6470.109719 | G31: J/(kg K)
A32: Cv: constant volume heat capacity, J/(kg K) | B32: CVL_T1(T) | D32: 25 | F32: =CVL_T1(D32) -> 1070.487186 | G32: J/(kg K)
A33: Gas/vapor phase (saturated)
A34: r: Density, kg/m3 | B34: RHOG_T1(T) | D34: 25 | F34: =rhog_t1(D34) -> 242.7096819 | G34: kg/m3
A35: H: Enthalpy, H, J/kg | B35: HG_T1(T) | D35: 25 | F35: =hg_t1(D35) -> 394435.4223 | G35: J/kg
A36: S: Entropy, S, J/kg K | B36: SG_T1(T) | D36: 25 | F36: =sg_t1(D36) -> 1649.783349 | G36: J/(kg K)
A37: Cp: constant pressure heat capacity, J/(kg K) | B37: CPG_T1(T) | D37: 25 | F37: =CPG_T1(D37) -> 8208.202359 | G37: J/(kg K)
A38: Cv: constant volume heat capacity, J/(kg K) | B38: CVG_T1(T) | D38: 25 | F38: =CVG_T1(D38) -> 1181.744522 | G38: J/(kg K)
A39: Single Phase Region
A40: Note: U, H, S, Cp, Cv can be used
A41: on the saturation boundary
A42: T,P functions | C42: r [kg/m3] | D42: T [oC] | E42: P [Pa] | F42: Calculated Value
A43: V: specific volume, Wagner eqn., m3/kg | B43: V_TP1(T,P) | D43: 40 | E43: 11000000 | F43: =V_TP1(D43,E43) -> 0.001463011581 | G43: m3/kg
A44: r: Density, kg/m3 | B44: RHO_TP1(T,P) | D44: 20 | E44: 10000000 | F44: =rho_tp1(D44,E44) -> 856.3098232 | G44: kg/m3
A45: f: fugacity, Pa | B45: FUG_TP1(T,P) | D45: 40 | E45: 10000000 | F45: =fug_tp1(D45,E45)/1000000 -> 5.8138575 | G45: MPa
A46: U: internal energy | B46: U_TP1(T,P) | D46: 40 | E46: 10000000 | F46: =U_TP1(D46,E46) -> 297128.4094 | G46: J/kg
A47: H: Enthalpy, H, J/kg | B47: H_TP1(T,P) | D47: 40 | E47: 10000000 | F47: =h_tp1(D47,E47) -> 313039.3289 | G47: J/kg
A48: S: Entropy, S, J/kg K | B48: S_TP1(T,P) | D48: 40 | E48: 10000000 | F48: =s_tp1(D48,E48) -> 1356.236635 | G48: J/(kg K)
A49: Cv: constant volume heat capacity, J/(kg K) | B49: CV_TP1(T,P) | D49: 40 | E49: 10000000 | F49: =CV_TP1(D49,E49) -> 1029.144918 | G49: J/(kg K)
A50: Cp: constant pressure heat capacity, J/(kg K) | B50: CP_TP1(T,P) | D50: 40 | E50: 10000000 | F50: =cp_tp1(D50,E50) -> 5657.461545 | G50: J/(kg K)
A51: w: speed of sound, m/s | B51: W_TP1(T,P) | D51: 40 | E51: 10000000 | F51: =W_TP1(D51,E51) -> 269.8904144 | G51: m/s
A52: r,T functions
A53: P: pressure, Wagner eqn., Pa | B53: P_RT1(RHO,T) | C53: 628.61 | D53: 40 | F53: =P_RT1(C53,D53)/1000000 -> 9.999979303 | G53: MPa
A54: f: fugacity, Pa | B54: FUG_RT1(T,RHO) | C54: 628.61 | D54: 40 | F54: =FUG_RT1(C54,D54)/1000000 -> 5.813854265 | G54: MPa
A55: U: internal energy | B55: U_RT1(RHO,T) | C55: 628.61 | D55: 40 | F55: =U_RT1(C55,D55) -> 297128.7142 | G55: J/kg
A56: H: Enthalpy, H, J/kg | B56: H_RT1(RHO,T) | C56: 628.61 | D56: 40 | F56: =H_RT1(C56,D56) -> 313039.6403 | G56: J/kg
A57: S: Entropy, S, J/kg K | B57: S_RT1(RHO,T) | C57: 628.61 | D57: 40 | F57: =S_RT1(C57,D57) -> 1356.237735 | G57: J/(kg K)
A58: Cv: constant volume heat capacity, J/(kg K) | B58: CV_RT1(RHO,T) | C58: 628.61 | D58: 40 | F58: =CV_RT1(C58,D58) -> 1029.146468 | G58: J/(kg K)
A59: Cp: constant pressure heat capacity, J/(kg K) | B59: CP_RT1(RHO,T) | C59: 628.61 | D59: 40 | F59: =CP_RT1(C59,D59) -> 5657.518429 | G59: J/(kg K)
A60: w: speed of sound, m/s | B60: W_RT1(RHOH,T) | C60: 628.61 | D60: 40 | F60: =W_RT1(C60,D60) -> 269.8892419 | G60: m/s
A61: Virial Coefficients
A62: B: Second virial coefficient B, m3/kg | B62: VIRIALB_T1(T) | D62: 25 | F62: =VIRIALB_T1(D62) -> -0.0001230119575 | G62: m3/kg
A63: C: Third virial coefficient C, m6/kg2 | B63: VIRIALC_T1(T) | D63: 25 | F63: =VIRIALC_T1(D63) -> 4.746833479e-09 | G63: m6/kg2
A64: P,V (or rho) functions | C64: P [Pa] | D64: r [kg/m3] | E64: V [m3/kg] | F64: Calculated Value
A65: T:single phase temperature at P > Pc | B65: T_PV1(P,V) | C65: 11000000 | E65: 0.001463011581 | F65: =T_PV1(C65,E65) -> 39.99999811
B66: T_PR1(P,RHO) | C66: 28370000 | D66: 1000 | F66: =T_PR1(C66,D66) -> 14.00545336
A67: T:single phase temperature at P < Pc, liquid phase | B67: T_PVL1(P,V) | C67: 6600000 | E67: 0.001 | F67: =T_PVL1(C67,E67) -> -8.954029197
B68: T_PRL1(P,RHO) | C68: 38000000 | D68: 1000 | F68: =T_PRL1(C68,D68) -> 24.20703222
A69: T:single phase temperature at P < Pc, gas phase | B69: T_PVG1(P,V) | C69: 6600000 | E69: 0.02 | F69: =T_PVG1(C69,E69) -> 425.6122942
B70: T_PRG1(P,RHO) | C70: 380000000 | D70: 900 | F70: =T_PRG1(C70,D70) -> 618.5895701
A72: Functions Useful for Compressors/Pumps/ Expansions through Valves | C72: S J/kg K | E72: H J/kg
A73: T: single phase temperature at P, S | B73: T_PS1(P,S) | C73: 1356.2 | D73: 10000000 | F73: =t_ps1(D73,C73) -> 39.997972 | G73: oC
A74: T: single phase temperature at P, H | B74: T_PH1(P,H) | D74: 10000000 | E74: 313039 | F74: =t_ph1(D74,E74) -> 39.99994186 | G74: oC
C76: r [kg/m3] | D76: T [oC] | E76: P [Pa] | F76: Calculated Value
A77: Joule-Thomson coefficient mu = (dT/dP)h | B77: JT_RT1(RHO,T) | C77: 628.61 | D77: 40 | F77: =JT_RT1(C77,D77)*1000000 -> 1.099219408 | G77: K/MPa
A78: Isothermal throttling coefficient delt = (dh/dP)T | B78: DELT_RT1(RHO,T) | C78: 628.61 | D78: 40 | F78: =DELT_RT1(C78,D78) -> -0.01504706405 | G78: J/kg Pa
A79: Isentropic temperature pressure coefficient bs = (dT/dP)s | B79: BETAS_RT1(RHO,T) | C79: 628.61 | D79: 40 | F79: =BETAS_RT1(C79,D79)*1000000 -> 2.940843362 | G79: K/MPa
A81: Two Phase Region | C81: State | D81: P [Pa] | E81: H [J/kg] | F81: X [-]
A82: Quality X_PH1(P,H) | B82: X_PH1(P,H) | C82: I | D82: 5729194.4 | E82: 255864.6 | F82: =x_ph1(D82,E82) -> 2.920154834e-07 | G82: T | H82: 20 | I82: C
C83: II | D83: 5729195.4 | E83: 350000 | F83: =x_ph1(D83,E83) -> 0.6193256198 | G83: HL | H83: =hl_t1(H82) -> 255864.5562 | I83: J/kg
C84: III | D84: 5729196.4 | E84: 407861.2 | F84: =x_ph1(D84,E84) -> 0.9999999038 | G84: HG | H84: =hg_t1(H82) -> 407861.2456 | I84: J/kg
G85: Psat | H85: =psat_T1(H82) -> 5729194.424 | I85: Pa
D86: P [Pa] | E86: S [J/kg K]
A87: Quality X_PS1(P,H) | B87: X_PS1(P,S) | C87: I | D87: 5729196.4 | E87: 1187.7 | F87: =X_PS1(D87,E87) -> 0 | G87: T | H87: 20 | I87: C
C88: II | D88: 5729196.4 | E88: 1500 | F88: =X_PS1(D88,E88) -> 0.6023103608 | G88: SL | H88: =sl_t1(H87) -> 1187.705199 | I88: J/(kg K)
C89: III | D89: 5729196.4 | E89: 1706.2 | F89: =X_PS1(D89,E89) -> 1 | G89: SG | H89: =sg_t1(H87) -> 1706.200051 | I89: J/(kg K)
G90: Psat | H90: =psat_T1(H87) -> 5729194.424 | I90: Pa
A91: Derivative Properties
A92: T,P functions | C92: r [kg/m3] | D92: T [oC] | E92: P [Pa] | F92: Calculated Value
A93: dP/dT derivative | B93: DPDT_TP1(T, P) | D93: 40 | E93: 10000000 | F93: =DPDT_TP1(D93, E93)/1000000 -> 0.2781842958 | G93: MPa/K
A94: dP/drho derivative = (dP/drho)T | B94: DPDR_TP1(T,P) | D94: 40 | E94: 10000000 | F94: =DPDR_TP1(D94,E94)/1000000 -> 0.01325042608 | G94: MPa/(kg/m3)
A95: drho/dT derivative = (drho/dT)P | B95: DRDT_TP1(T,P) | D95: 40 | E95: 10000000 | F95: =DRDT_TP1(D95,E95) -> -20.99436608 | G95: (kg/m3 K)
A96: Isothermal compressibility = (1/rho)*(drho/dP)T | B96: BETAT_TP1(T,P) | D96: 40 | E96: 10000000 | F96: =BETAT_TP1(D96,E96)*1000000 -> 0.1200570843 | G96: 1/MPa
A97: Volume coefficient of expansion = (1/V)*(dV/dT)P | B97: BETAP_TP1(T,P) | D97: 40 | E97: 10000000 | F97: =BETAP_TP1(D97,E97) -> 0.03339799544 | G97: 1/K
A98: r,T functions
A99: dP/dT derivative | B99: DPDT_RT1(RHO,T) | C99: 628.61 | D99: 40 | F99: =DPDT_RT1(C99,D99)/1000000 -> 0.2781828699 | G99: MPa/K
A100: dP/drho derivative = (dP/drho)T | B100: DPDR_RT1(RHO,T) | C100: 628.61 | D100: 40 | F100: =DPDR_RT1(C100,D100)/1000000 -> 0.01325019768 | G100: MPa/(kg/m3)
A101: drho/dT derivative = (drho/dT)P (derived) | B101: DRDT_RT1(RHO,T) | C101: 628.61 | D101: 40 | F101: =DRDT_RT1(C101,D101) -> -20.99462035 | G101: (kg/m3 K)
A102: Isothermal compressibility = -(1/V)*(dV/dP)T | B102: BETAT_RT1(RHO,T) | C102: 628.61 | D102: 40 | F102: =BETAT_RT1(C102,D102)*1000000 -> 0.120059452 | G102: 1/MPa
A103: Volume coefficient of expansion = -(1/V)*(dV/dT)P | B103: BETAP_RT1(RHO,T) | C103: 628.61 | D103: 40 | F103: =BETAP_RT1(C103,D103) -> 0.03339848293 | G103: 1/K
A104: Transport Properties
A105: Based on correlations in Reid, Prausnitz and Poling (1987)
A106: Liquid phase (saturated) | D106: T [oC] | F106: Calculated Value
A107: Viscosity, Pa s | B107: VMUL_T1(T) | D107: 25 | F107: =vmul_t1(D107) -> 6.060271524e-05 | G107: Pa s
A108: Kinematic viscosity (dense gas), (=mu/rho), m2/s | B108: VNUL_T1(T) | D108: 25 | F108: =vnul_t1(D108) -> 8.529929146e-08 | G108: m2/s
A109: Surface tension, N/m | B109: SIGMA_T1(T) | D109: 25 | F109: =SIGMA_T1(D109) -> 0.0005312636268 | G109: N/m
A110: Thermal conductivity (saturated liquid), W/(m K) | B110: kL_T1(T) | D110: 20 | F110: =kL_T1(D110) -> 0.08733585464 | G110: W/(m K)
A111: Gas/vapor phase (saturated)
A112: Viscosity, Pa s | B112: VMUG_T1(T) | D112: 25 | F112: =vmug_t1(D112) -> 2.23840019e-05 | G112: Pa s
A113: Kinematic viscosity (dense gas), (=mu/rho), m2/s | B113: VNUG_T1(T) | D113: 25 | F113: =vnug_t1(D113) -> 9.222541817e-08 | G113: m2/s
A114: Ideal gas thermal conductivity, W/(m K) | B114: KID_T1(T) | D114: 25 | F114: =KID_T1(D114) -> 0.01688950914 | G114: W/(m K)
A115: Thermal conductivity (saturated vapor), W/(m K) | B115: kG_T1(T) | D115: 20 | F115: =kG_T1(D115) -> 0.02609383985 | G115: W/(m K)
A116: Single Phase (Gas/vapor) Region
A117: T,P functions | C117: r [kg/m3] | D117: T [oC] | E117: P [Pa] | F117: Calculated Value
A118: Viscosity (dense gas), Pa s | B118: VMU_TP1(T,P) | D118: 40 | E118: 10000000 | F118: =VMU_TP1(D118,E118) -> 4.926482141e-05 | G118: Pa s
A119: Kinematic viscosity (dense gas), (=mu/rho), m2/s | B119: VNU_TP1(T,P) | D119: 40 | E119: 10000000 | F119: =vnu_tp1(D119,E119) -> 7.837084837e-08 | G119: m2/s
A120: Thermal conductivity (dense gas), W/(m K) | B120: k_TP1(T,P) | D120: 40 | E120: 10000000 | F120: =k_TP1(D120,E120) -> 0.06841353848 | G120: W/(m K)
A121: r,T functions
A122: Viscosity (dense gas), Pa s | B122: VMU_RT1(RHO,T) | C122: 628.61 | D122: 40 | F122: =vmu_rt1(C122,D122) -> 4.926466384e-05 | G122: Pa s
A123: Kinematic viscosity (dense gas), (=mu/rho), m2/s | B123: VNU_RT1(RHO,T) | C123: 628.61 | D123: 40 | F123: =VNU_RT1(C123,D123) -> 7.837079245e-08 | G123: m2/s
A124: Thermal conductivity (dense gas), W/(m K) | B124: k_RT1(RHO,T) | C124: 628.61 | D124: 40 | F124: =k_RT1(C124,D124) -> 0.06841333921 | G124: W/(m K)
A125: Other
A126: Dielectric function of Moriyoshi et at. (1993). | B126: EPS_RT1(RHO,T) | C126: 628.61 | D126: 40 | F126: =EPS_RT1(C126,D126) -> 1.367511637
B127: EPS_TP1(T,P) | D127: 40 | E127: 10000000 | F127: =EPS_TP1(D127,E127) -> 1.367512667

Sheet Example
B2: Input Field
B3: Calculation Field | D3: Example of using the rho_tp1(TinC,PinPa) function
B4: Solver Field
B5: Vector function | H5: Curve label: | I5: =CONCATENATE(E6," C") -> 40 C
B6: Note Field | D6: T [C] | E6: 40
B7: Optional/Disregard | D7: P [MPa] | E7: rho [kg/m3]
D8: 0.01 | E8: =rho_tp1($E$6,D8*1000000) -> 0.1690999559
D9: 0.02 | E9: 0.3383427987
D10: 0.03 | E10: 0.5077288236
D11: 0.04 | E11: 0.6772583269
D12: 0.05 | E12: 0.8469316059
D13: 0.06 | E13: 1.016748959
D14: 0.07 | E14: 1.186710685
D15: 0.08 | E15: 1.356817084
D16: 0.09 | E16: 1.527068459
D17: 0.1 | E17: 1.69746511
D18: 0.2 | E18: 3.409489058
D19: 0.4 | E19: 6.878459513
D20: 0.6 | E20: 10.40951178
D21: 0.8 | E21: 14.00543114
D22: 1 | E22: 17.66920577
D23: 1.2 | E23: 21.40404699
D24: 1.4 | E24: 25.21341219
D25: 1.6 | E25: 29.10103074
D26: 1.8 | E26: 33.07093346
D27: 2 | E27: 37.12748622
D28: 2.2 | E28: 41.27542846
D29: 2.4 | E29: 45.51991735
D30: 2.6 | E30: 49.86657887
D31: 2.8 | E31: 54.32156699
D32: 3 | E32: 58.89163255
D33: 3.2 | E33: 63.58420399
D34: 3.4 | E34: 68.40748229
D35: 3.6 | E35: 73.37055344
D36: 3.8 | E36: 78.48352236
D37: 4 | E37: 83.75767347
D38: 4.2 | E38: 89.20566466
D39: 4.4 | E39: 94.84176325
D40: 4.6 | E40: =rho_tp1($E$6,D40*1000000) -> 100.6821356
D41: 4.8 | E41: 106.7452058
D42: 5 | E42: 113.0521035
D43: 5.2 | E43: 119.6272308
D44: 5.4 | E44: 126.498986
D45: 5.6 | E45: 133.7007009
D46: 5.8 | E46: 141.271871
D47: 6 | E47: 149.2597964
D48: 6.2 | E48: 157.7218061
D49: 6.4 | E49: 166.7283342
D50: 6.6 | E50: 176.3672642
D51: 6.8 | E51: 186.7502159
D52: 7 | E52: 198.0218968
D53: 7.2 | E53: 210.374451
D54: 7.4 | E54: 224.0702596
D55: 7.6 | E55: 239.4795943
D56: 7.8 | E56: 257.1452731
D57: 8 | E57: 277.8970554
D58: 8.2 | E58: 303.0518548
D59: 8.4 | E59: 334.712564
D60: 8.6 | E60: 375.9448778
D61: 8.8 | E61: 429.1003257
D62: 9 | E62: 485.5014409
D63: 9.2 | E63: 532.0359421
D64: 9.4 | E64: 566.3483261
D65: 9.6 | E65: 591.970043
D66: 9.8 | E66: 612.1059072
D67: 10 | E67: 628.611562
D68: 10.2 | E68: 642.5709983
D69: 10.4 | E69: 654.660508
D70: 10.6 | E70: 665.3256419
D71: 10.8 | E71: 674.8730439
D72: 11 | E72: =rho_tp1($E$6,D72*1000000) -> 683.5215886
D73: 11.2 | E73: 691.4323856
D74: 11.4 | E74: 698.7271611
D75: 11.6 | E75: 705.4999557
D76: 11.8 | E76: 711.8248262
D77: 12 | E77: 717.7610721
D78: 12.2 | E78: 723.356875
D79: 12.4 | E79: 728.6518943
D80: 12.6 | E80: 733.6791543
D81: 12.8 | E81: 738.4664418
D82: 13 | E82: 743.0373583
D83: 13.2 | E83: 747.4121214
D84: 13.4 | E84: 751.6081857
D85: 13.6 | E85: 755.6407275
D86: 13.8 | E86: 759.5230283
D87: 14 | E87: 763.2667807
D88: 14.2 | E88: 766.8823353
D89: 14.4 | E89: 770.3789009
D90: 14.6 | E90: 773.7647087
D91: 14.8 | E91: 777.0471479
D92: 15 | E92: 780.2328786
D93: 15.2 | E93: 783.3279253
D94: 15.4 | E94: 786.3377571
D95: 15.6 | E95: 789.2673545
D96: 15.8 | E96: 792.1212665
D97: 16 | E97: 794.9036598
D98: 16.2 | E98: 797.6183611
D99: 16.4 | E99: 800.2688931
D100: 16.6 | E100: 802.8585066
D101: 16.8 | E101: 805.3902077
D102: 17 | E102: 807.866782
D103: 17.2 | E103: 810.290816
D104: 17.4 | E104: =rho_tp1($E$6,D104*1000000) -> 812.6647156
D105: 17.6 | E105: 814.9907226
D106: 17.8 | E106: 817.2709293
D107: 18 | E107: 819.507292
D108: 18.2 | E108: 821.7016418
D109: 18.4 | E109: 823.855696
D110: 18.6 | E110: 825.9710667
D111: 18.8 | E111: 828.0492694
D112: 19 | E112: 830.0917308
D113: 19.2 | E113: 832.0997954
D114: 19.4 | E114: 834.0747317
D115: 19.6 | E115: 836.0177381
D116: 19.8 | E116: 837.9299475
D117: 20 | E117: 839.8124327
